Workbook

Sheet MainDisplay
G2: CQG Ranked % Net Change Performance | Y2: Ribbon
F4: Enter Symbols: | H4: S.XLE | I4: S.XLF | J4: S.XLV | K4: S.XLRE | L4: S.XLP | M4: S.XLB | N4: S.XLU | O4: S.XLI | P4: S.XLC | Q4: S.XLY | R4: S.XLK | S4: S.SPY
D5: Symbol: | E5: =IFERROR(AL6,AG6) -> S.XLP | J5: Symbol: | K5: =IFERROR(AL7,AG7) -> S.XLU | P5: Symbol: | Q5: =IFERROR(AL8,AG8) -> S.XLRE | V5: Symbol: | W5: =IFERROR(AL9,AG9) -> S.XLF
AG6: =H4 -> S.XLE | AH6: =IFERROR(RTD("cqg.rtd", ,"ContractData",AG6, "PerCentNetLastTrade",, "T")/100,"") -> -0.003857640617 | AI6: =RANK(AH6,$AH$6:$AH$17,0)+COUNTIF($AH$6:AH6,AH6)-1 -> 10 | AJ6: =AG6 -> S.XLE | AK6: 1 | AL6: =VLOOKUP(AK6,$AI$6:$AJ$17,2,FALSE) -> S.XLP | AN6: S.SPY
AG7: =I4 -> S.XLF | AH7: =IFERROR(RTD("cqg.rtd", ,"ContractData",AG7, "PerCentNetLastTrade",, "T")/100,"") -> 0.006113769272 | AI7: =RANK(AH7,$AH$6:$AH$17,0)+COUNTIF($AH$6:AH7,AH7)-1 -> 4 | AJ7: =AG7 -> S.XLF | AK7: =AK6+1 -> 2 | AL7: =VLOOKUP(AK7,$AI$6:$AJ$17,2,FALSE) -> S.XLU | AN7: S.XLB
AG8: =J4 -> S.XLV | AH8: =IFERROR(RTD("cqg.rtd", ,"ContractData",AG8, "PerCentNetLastTrade",, "T")/100,"") -> 0.005201560468 | AI8: =RANK(AH8,$AH$6:$AH$17,0)+COUNTIF($AH$6:AH8,AH8)-1 -> 6 | AJ8: S.XLV | AK8: =AK7+1 -> 3 | AL8: =VLOOKUP(AK8,$AI$6:$AJ$17,2,FALSE) -> S.XLRE | AN8: S.XLC
AG9: =K4 -> S.XLRE | AH9: =IFERROR(RTD("cqg.rtd", ,"ContractData",AG9, "PerCentNetLastTrade",, "T")/100,"") -> 0.008457511075 | AI9: =RANK(AH9,$AH$6:$AH$17,0)+COUNTIF($AH$6:AH9,AH9)-1 -> 3 | AJ9: S.XLRE | AK9: 4 | AL9: =VLOOKUP(AK9,$AI$6:$AJ$17,2,FALSE) -> S.XLF | AN9: S.XLE
AG10: =L4 -> S.XLP | AH10: =IFERROR(RTD("cqg.rtd", ,"ContractData",AG10, "PerCentNetLastTrade",, "T")/100,"") -> 0.01045603427 | AI10: =RANK(AH10,$AH$6:$AH$17,0)+COUNTIF($AH$6:AH10,AH10)-1 -> 1 | AJ10: S.XLP | AK10: 5 | AL10: S.XLI | AN10: S.XLF
AG11: =M4 -> S.XLB | AH11: =IFERROR(RTD("cqg.rtd", ,"ContractData",AG11, "PerCentNetLastTrade",, "T")/100,"") -> 0.001333629695 | AI11: =RANK(AH11,$AH$6:$AH$17,0)+COUNTIF($AH$6:AH11,AH11)-1 -> 8 | AJ11: S.XLB | AK11: 6 | AL11: S.XLV | AN11: S.XLI
AG12: =N4 -> S.XLU | AH12: =IFERROR(RTD("cqg.rtd", ,"ContractData",AG12, "PerCentNetLastTrade",, "T")/100,"") -> 0.008664828673 | AI12: =RANK(AH12,$AH$6:$AH$17,0)+COUNTIF($AH$6:AH12,AH12)-1 -> 2 | AJ12: S.XLU | AK12: 7 | AL12: S.XLK | AN12: S.XLK
AG13: =O4 -> S.XLI | AH13: =IFERROR(RTD("cqg.rtd", ,"ContractData",AG13, "PerCentNetLastTrade",, "T")/100,"") -> 0.005818540434 | AI13: =RANK(AH13,$AH$6:$AH$17,0)+COUNTIF($AH$6:AH13,AH13)-1 -> 5 | AJ13: S.XLI | AK13: 8 | AL13: S.XLB | AN13: S.XLP
AG14: =P4 -> S.XLC | AH14: =IFERROR(RTD("cqg.rtd", ,"ContractData",AG14, "PerCentNetLastTrade",, "T")/100,"") -> -0.03403373779 | AI14: =RANK(AH14,$AH$6:$AH$17,0)+COUNTIF($AH$6:AH14,AH14)-1 -> 12 | AJ14: S.XLC | AK14: 9 | AL14: S.SPY | AN14: S.XLP
AG15: =Q4 -> S.XLY | AH15: =IFERROR(RTD("cqg.rtd", ,"ContractData",AG15, "PerCentNetLastTrade",, "T")/100,"") -> -0.007005919731 | AI15: =RANK(AH15,$AH$6:$AH$17,0)+COUNTIF($AH$6:AH15,AH15)-1 -> 11 | AJ15: S.XLY | AK15: 10 | AL15: S.XLE | AN15: S.XLRE
AG16: =R4 -> S.XLK | AH16: =IFERROR(RTD("cqg.rtd", ,"ContractData",AG16, "PerCentNetLastTrade",, "T")/100,"") -> 0.002602081665 | AI16: =RANK(AH16,$AH$6:$AH$17,0)+COUNTIF($AH$6:AH16,AH16)-1 -> 7 | AJ16: S.XLK | AK16: 11 | AL16: S.XLY | AN16: S.XLV
AG17: =S4 -> S.SPY | AH17: =IFERROR(RTD("cqg.rtd", ,"ContractData",AG17, "PerCentNetLastTrade",, "T")/100,"") -> -0.0006066870394 | AI17: =RANK(AH17,$AH$6:$AH$17,0)+COUNTIF($AH$6:AH17,AH17)-1 -> 9 | AJ17: S.SPY | AK17: 12 | AL17: S.XLC | AN17: S.XLY
D20: Symbol: | E20: =IFERROR(AL10,AG10) -> S.XLI | J20: Symbol: | K20: =IFERROR(AL11,AG11) -> S.XLV | P20: Symbol: | Q20: =IFERROR(AL12,AG12) -> S.XLK | V20: Symbol: | W20: =IFERROR(AL13,AG13) -> S.XLB
D35: Symbol: | E35: =IFERROR(AL14,AG14) -> S.SPY | J35: Symbol: | K35: =IFERROR(AL15,AG15) -> S.XLE | P35: Symbol: | Q35: =IFERROR(AL16,AG16) -> S.XLY | V35: Symbol: | W35: =IFERROR(AL17,AG17) -> S.XLC
Q42: 0
C52: Copyright © 2022 CQG, Inc.

Sheet Data (hidden)
A1: =IFERROR(ROUND(RTD("cqg.rtd", ,"ContractData",A2, "PerCentNetLastTrade",, "T"),2)/100,0) -> 0.0105 | C1: =VLOOKUP(A1,D1:E301,2,TRUE) -> 171.9 | D1: -0.0375 | E1: 0 | G1: =G2+0.5% -> 0.025 | H1: 10 | I1: 1 | J1: -0.0375 | L1: =IFERROR(ROUND(RTD("cqg.rtd", ,"ContractData",L2, "PerCentNetLastTrade",, "T"),2)/100,0) -> 0.0087 | N1: =VLOOKUP(L1,O1:P301,2) -> 165.6 | O1: -0.0375 | P1: 0 | R1: =R2+0.5% -> 0.025 | S1: 10 | T1: 1 | U1: -0.0375 | W1: =IFERROR(RTD("cqg.rtd", ,"ContractData",W2, "PerCentNetLastTrade",, "T")/100,0) -> 0.008457511075 | Y1: =ROUND(VLOOKUP(W1,Z1:AA301,2),0) -> 165 | Z1: -0.0375 | AA1: 0 | AC1: =AC2+0.5% -> 0.025 | AD1: 10 | AE1: 1 | AF1: -0.0375 | AH1: =IFERROR(RTD("cqg.rtd", ,"ContractData",AH2, "PerCentNetLastTrade",, "T")/100,0) -> 0.006113769272 | AJ1: =ROUND(VLOOKUP(AH1,AK1:AL301,2),0) -> 157 | AK1: -0.0375 | AL1: 0 | AN1: =AN2+0.5% -> 0.025 | AO1: 10 | AP1: 1 | AQ1: -0.0375 | AS1: =IFERROR(RTD("cqg.rtd", ,"ContractData",AS2, "PerCentNetLastTrade",, "T")/100,0) -> 0.005818540434 | AU1: =ROUND(VLOOKUP(AS1,AV1:AW301,2),0) -> 156 | AV1: -0.0375 | AW1: 0 | AY1: =AY2+0.5% -> 0.025 | AZ1: 10 | BA1: 1 | BB1: -0.0375 | BD1: =IFERROR(RTD("cqg.rtd", ,"ContractData",BD2, "PerCentNetLastTrade",, "T")/100,0) -> 0.005201560468 | BF1: =ROUND(VLOOKUP(BD1,BG1:BH301,2),0) -> 153 | BG1: -0.0375 | BH1: 0 | BJ1: =BJ2+0.5% -> 0.025 | BK1: 10 | BL1: 1 | BM1: -0.0375 | BO1: =IFERROR(RTD("cqg.rtd", ,"ContractData",BO2, "PerCentNetLastTrade",, "T")/100,0) -> 0.002602081665 | BQ1: =ROUND(VLOOKUP(BO1,BR1:BS301,2),0) -> 144 | BR1: -0.0375 | BS1: 0 | BU1: =BU2+0.5% -> 0.025 | BV1: 10 | BW1: 1 | BX1: -0.0375 | BZ1: =IFERROR(RTD("cqg.rtd", ,"ContractData",BZ2, "PerCentNetLastTrade",, "T")/100,0) -> 0.001333629695 | CB1: =ROUND(VLOOKUP(BZ1,CC1:CD301,2),0) -> 140 | CC1: -0.0375 | CD1: 0 | CF1: =CF2+0.5% -> 0.025 | CG1: 10 | CH1: 1 | CI1: -0.0375 | CK1: =IFERROR(RTD("cqg.rtd", ,"ContractData",CK2, "PerCentNetLastTrade",, "T")/100,0) -> -0.0006066870394 | CM1: =ROUND(VLOOKUP(CK1,CN1:CO301,2),0) -> 132 | CN1: -0.0375 | CO1: 0 | CQ1: =CQ2+0.5% -> 0.025 | CR1: 10 | CS1: 1 | CT1: -0.0375 | CV1: =IFERROR(RTD("cqg.rtd", ,"ContractData",CV2, "PerCentNetLastTrade",, "T")/100,0) -> -0.003857640617 | CX1: =ROUND(VLOOKUP(CV1,CY1:CZ301,2),0) -> 121 | CY1: -0.0375 | CZ1: 0 | DB1: =DB2+0.5% -> 0.025 | DC1: 10 | DD1: 1 | DE1: -0.0375 | DG1: =IFERROR(RTD("cqg.rtd", ,"ContractData",DG2, "PerCentNetLastTrade",, "T")/100,0) -> -0.007005919731 | DI1: =ROUND(VLOOKUP(DG1,DJ1:DK301,2),0) -> 109 | DJ1: -0.0375 | DK1: 0 | DM1: =DM2+0.5% -> 0.025 | DN1: 10 | DO1: 1 | DP1: -0.0375 | DR1: =IFERROR(RTD("cqg.rtd", ,"ContractData",DR2, "PerCentNetLastTrade",, "T")/100,0) -> -0.03403373779 | DT1: =ROUND(VLOOKUP(DR1,DU1:DV301,2),0) -> 12 | DU1: -0.0375 | DV1: 0 | DX1: =DX2+0.5% -> 0.025 | DY1: 10 | DZ1: 1 | EA1: -0.0375
A2: =MainDisplay!E5 -> S.XLP | C2: =C1 -> 171.9 | D2: -0.03725 | E2: 0.9 | G2: 0.02 | H2: 10 | I2: 2 | J2: -0.03 | L2: =MainDisplay!K5 -> S.XLU | N2: =N1 -> 165.6 | O2: -0.03725 | P2: 0.9 | R2: 0.02 | S2: 10 | T2: 2 | U2: -0.03 | W2: =MainDisplay!Q5 -> S.XLRE | Y2: =Y1 -> 165 | Z2: -0.03725 | AA2: 0.9 | AC2: 0.02 | AD2: 10 | AE2: 2 | AF2: -0.03 | AH2: =MainDisplay!W5 -> S.XLF | AJ2: =AJ1 -> 157 | AK2: -0.03725 | AL2: 0.9 | AN2: 0.02 | AO2: 10 | AP2: 2 | AQ2: -0.03 | AS2: =MainDisplay!E20 -> S.XLI | AU2: =AU1 -> 156 | AV2: -0.03725 | AW2: 0.9 | AY2: 0.02 | AZ2: 10 | BA2: 2 | BB2: -0.03 | BD2: =MainDisplay!K20 -> S.XLV | BF2: =BF1 -> 153 | BG2: -0.03725 | BH2: 0.9 | BJ2: 0.02 | BK2: 10 | BL2: 2 | BM2: -0.03 | BO2: =MainDisplay!Q20 -> S.XLK | BQ2: =BQ1 -> 144 | BR2: -0.03725 | BS2: 0.9 | BU2: 0.02 | BV2: 10 | BW2: 2 | BX2: -0.03 | BZ2: =MainDisplay!W20 -> S.XLB | CB2: =CB1 -> 140 | CC2: -0.03725 | CD2: 0.9 | CF2: 0.02 | CG2: 10 | CH2: 2 | CI2: -0.03 | CK2: =MainDisplay!E35 -> S.SPY | CM2: =CM1 -> 132 | CN2: -0.03725 | CO2: 0.9 | CQ2: 0.02 | CR2: 10 | CS2: 2 | CT2: -0.03 | CV2: =MainDisplay!K35 -> S.XLE | CX2: =CX1 -> 121 | CY2: -0.03725 | CZ2: 0.9 | DB2: 0.02 | DC2: 10 | DD2: 2 | DE2: -0.03 | DG2: =MainDisplay!Q35 -> S.XLY | DI2: =DI1 -> 109 | DJ2: -0.03725 | DK2: 0.9 | DM2: 0.02 | DN2: 10 | DO2: 2 | DP2: -0.03 | DR2: =MainDisplay!W35 -> S.XLC | DT2: =DT1 -> 12 | DU2: -0.03725 | DV2: 0.9 | DX2: 0.02 | DY2: 10 | DZ2: 2 | EA2: -0.03
A3: =IFERROR(RTD("cqg.rtd", ,"ContractData",A2, "Longdescription",, "T"),"") -> Consumer Staples Select Sector SPDR | C3: 3 | D3: -0.037 | E3: 1.8 | G3: 0.015 | H3: 10 | I3: 3 | J3: -0.0225 | L3: =RTD("cqg.rtd", ,"ContractData",L2, "Longdescription",, "T") -> Utilities Select Sector SPDR | N3: 3 | O3: -0.037 | P3: 1.8 | R3: 0.015 | S3: 10 | T3: 3 | U3: -0.0225 | W3: =RTD("cqg.rtd", ,"ContractData",W2, "Longdescription",, "T") -> Real Estate Select Sector SPDR | Y3: 3 | Z3: -0.037 | AA3: 1.8 | AC3: 0.015 | AD3: 10 | AE3: 3 | AF3: -0.0225 | AH3: =RTD("cqg.rtd", ,"ContractData",AH2, "Longdescription",, "T") -> Financial Select Sector SPDR | AJ3: 3 | AK3: -0.037 | AL3: 1.8 | AN3: 0.015 | AO3: 10 | AP3: 3 | AQ3: -0.0225 | AS3: =RTD("cqg.rtd", ,"ContractData",AS2, "Longdescription",, "T") -> Industrial Select Sector SPDR | AU3: 3 | AV3: -0.037 | AW3: 1.8 | AY3: 0.015 | AZ3: 10 | BA3: 3 | BB3: -0.0225 | BD3: =RTD("cqg.rtd", ,"ContractData",BD2, "Longdescription",, "T") -> Health Care Select Sector SPDR | BF3: 3 | BG3: -0.037 | BH3: 1.8 | BJ3: 0.015 | BK3: 10 | BL3: 3 | BM3: -0.0225 | BO3: =RTD("cqg.rtd", ,"ContractData",BO2, "Longdescription",, "T") -> Technology Sector SPDR Fund | BQ3: 3 | BR3: -0.037 | BS3: 1.8 | BU3: 0.015 | BV3: 10 | BW3: 3 | BX3: -0.0225 | BZ3: =RTD("cqg.rtd", ,"ContractData",BZ2, "Longdescription",, "T") -> Materials Select Sector SPDR | CB3: 3 | CC3: -0.037 | CD3: 1.8 | CF3: 0.015 | CG3: 10 | CH3: 3 | CI3: -0.0225 | CK3: =RTD("cqg.rtd", ,"ContractData",CK2, "Longdescription",, "T") -> SPDR S&P 500 | CM3: 3 | CN3: -0.037 | CO3: 1.8 | CQ3: 0.015 | CR3: 10 | CS3: 3 | CT3: -0.0225 | CV3: =RTD("cqg.rtd", ,"ContractData",CV2, "Longdescription",, "T") -> Energy Select Sector SPDR | CX3: 3 | CY3: -0.037 | CZ3: 1.8 | DB3: 0.015 | DC3: 10 | DD3: 3 | DE3: -0.0225 | DG3: =RTD("cqg.rtd", ,"ContractData",DG2, "Longdescription",, "T") -> Consumer Discretionary Select SectorSPDR | DI3: 3 | DJ3: -0.037 | DK3: 1.8 | DM3: 0.015 | DN3: 10 | DO3: 3 | DP3: -0.0225 | DR3: =RTD("cqg.rtd", ,"ContractData",DR2, "Longdescription",, "T") -> Communication Services Select Sector SPDR | DT3: 3 | DU3: -0.037 | DV3: 1.8 | DX3: 0.015 | DY3: 10 | DZ3: 3 | EA3: -0.0225
C4: =270-C3-C2 -> 95.1 | D4: -0.03675 | E4: 2.7 | G4: 0.01 | H4: 10 | I4: 4 | J4: -0.015 | N4: =270-N3-N2 -> 101.4 | O4: -0.03675 | P4: 2.7 | R4: 0.01 | S4: 10 | T4: 4 | U4: -0.015 | Y4: =270-Y3-Y2 -> 102 | Z4: -0.03675 | AA4: 2.7 | AC4: 0.01 | AD4: 10 | AE4: 4 | AF4: -0.015 | AJ4: =270-AJ3-AJ2 -> 110 | AK4: -0.03675 | AL4: 2.7 | AN4: 0.01 | AO4: 10 | AP4: 4 | AQ4: -0.015 | AU4: =270-AU3-AU2 -> 111 | AV4: -0.03675 | AW4: 2.7 | AY4: 0.01 | AZ4: 10 | BA4: 4 | BB4: -0.015 | BF4: =270-BF3-BF2 -> 114 | BG4: -0.03675 | BH4: 2.7 | BJ4: 0.01 | BK4: 10 | BL4: 4 | BM4: -0.015 | BQ4: =270-BQ3-BQ2 -> 123 | BR4: -0.03675 | BS4: 2.7 | BU4: 0.01 | BV4: 10 | BW4: 4 | BX4: -0.015 | CB4: =270-CB3-CB2 -> 127 | CC4: -0.03675 | CD4: 2.7 | CF4: 0.01 | CG4: 10 | CH4: 4 | CI4: -0.015 | CM4: =270-CM3-CM2 -> 135 | CN4: -0.03675 | CO4: 2.7 | CQ4: 0.01 | CR4: 10 | CS4: 4 | CT4: -0.015 | CX4: =270-CX3-CX2 -> 146 | CY4: -0.03675 | CZ4: 2.7 | DB4: 0.01 | DC4: 10 | DD4: 4 | DE4: -0.015 | DI4: =270-DI3-DI2 -> 158 | DJ4: -0.03675 | DK4: 2.7 | DM4: 0.01 | DN4: 10 | DO4: 4 | DP4: -0.015 | DT4: =270-DT3-DT2 -> 255 | DU4: -0.03675 | DV4: 2.7 | DX4: 0.01 | DY4: 10 | DZ4: 4 | EA4: -0.015
C5: 270 | D5: -0.0365 | E5: 3.6 | G5: =G6+0.5% -> 0.005 | H5: 10 | I5: 5 | J5: -0.0075 | N5: 270 | O5: -0.0365 | P5: 3.6 | R5: =R6+0.5% -> 0.005 | S5: 10 | T5: 5 | U5: -0.0075 | Y5: 270 | Z5: -0.0365 | AA5: 3.6 | AC5: =AC6+0.5% -> 0.005 | AD5: 10 | AE5: 5 | AF5: -0.0075 | AJ5: 270 | AK5: -0.0365 | AL5: 3.6 | AN5: =AN6+0.5% -> 0.005 | AO5: 10 | AP5: 5 | AQ5: -0.0075 | AU5: 270 | AV5: -0.0365 | AW5: 3.6 | AY5: =AY6+0.5% -> 0.005 | AZ5: 10 | BA5: 5 | BB5: -0.0075 | BF5: 270 | BG5: -0.0365 | BH5: 3.6 | BJ5: =BJ6+0.5% -> 0.005 | BK5: 10 | BL5: 5 | BM5: -0.0075 | BQ5: 270 | BR5: -0.0365 | BS5: 3.6 | BU5: =BU6+0.5% -> 0.005 | BV5: 10 | BW5: 5 | BX5: -0.0075 | CB5: 270 | CC5: -0.0365 | CD5: 3.6 | CF5: =CF6+0.5% -> 0.005 | CG5: 10 | CH5: 5 | CI5: -0.0075 | CM5: 270 | CN5: -0.0365 | CO5: 3.6 | CQ5: =CQ6+0.5% -> 0.005 | CR5: 10 | CS5: 5 | CT5: -0.0075 | CX5: 270 | CY5: -0.0365 | CZ5: 3.6 | DB5: =DB6+0.5% -> 0.005 | DC5: 10 | DD5: 5 | DE5: -0.0075 | DI5: 270 | DJ5: -0.0365 | DK5: 3.6 | DM5: =DM6+0.5% -> 0.005 | DN5: 10 | DO5: 5 | DP5: -0.0075 | DT5: 270 | DU5: -0.0365 | DV5: 3.6 | DX5: =DX6+0.5% -> 0.005 | DY5: 10 | DZ5: 5 | EA5: -0.0075
D6: -0.03625 | E6: 4.5 | G6: =G7-0.5% -> 0 | H6: 10 | I6: 6 | J6: 0 | O6: -0.03625 | P6: 4.5 | R6: =R7-0.5% -> 0 | S6: 10 | T6: 6 | U6: 0 | Z6: -0.03625 | AA6: 4.5 | AC6: =AC7-0.5% -> 0 | AD6: 10 | AE6: 6 | AF6: 0 | AK6: -0.03625 | AL6: 4.5 | AN6: =AN7-0.5% -> 0 | AO6: 10 | AP6: 6 | AQ6: 0 | AV6: -0.03625 | AW6: 4.5 | AY6: =AY7-0.5% -> 0 | AZ6: 10 | BA6: 6 | BB6: 0 | BG6: -0.03625 | BH6: 4.5 | BJ6: =BJ7-0.5% -> 0 | BK6: 10 | BL6: 6 | BM6: 0 | BR6: -0.03625 | BS6: 4.5 | BU6: =BU7-0.5% -> 0 | BV6: 10 | BW6: 6 | BX6: 0 | CC6: -0.03625 | CD6: 4.5 | CF6: =CF7-0.5% -> 0 | CG6: 10 | CH6: 6 | CI6: 0 | CN6: -0.03625 | CO6: 4.5 | CQ6: =CQ7-0.5% -> 0 | CR6: 10 | CS6: 6 | CT6: 0 | CY6: -0.03625 | CZ6: 4.5 | DB6: =DB7-0.5% -> 0 | DC6: 10 | DD6: 6 | DE6: 0 | DJ6: -0.03625 | DK6: 4.5 | DM6: =DM7-0.5% -> 0 | DN6: 10 | DO6: 6 | DP6: 0 | DU6: -0.03625 | DV6: 4.5 | DX6: =DX7-0.5% -> 0 | DY6: 10 | DZ6: 6 | EA6: 0
A7: 0 | B7: =RTD("cqg.rtd",,"StudyData",$A$2, "Bar", "", "Close","D",A7,,,,,"T") -> 80.21 | C7: =(B7-B8)/B8 -> 0.01045603427 | D7: -0.036 | E7: 5.4 | G7: 0.005 | H7: 10 | I7: 7 | J7: 0.0075 | L7: 0 | M7: =RTD("cqg.rtd",,"StudyData",$L$2, "Bar", "", "Close","D",L7,,,,,"T") -> 76.83 | N7: =(M7-M8)/M8 -> 0.008664828673 | O7: -0.036 | P7: 5.4 | R7: 0.005 | S7: 10 | T7: 7 | U7: 0.0075 | W7: 0 | X7: =RTD("cqg.rtd",,"StudyData",$W$2, "Bar", "", "Close","D",W7,,,,,"T") -> 50.08 | Y7: =(X7-X8)/X8 -> 0.008457511075 | Z7: -0.036 | AA7: 5.4 | AC7: 0.005 | AD7: 10 | AE7: 7 | AF7: 0.0075 | AH7: 0 | AI7: =RTD("cqg.rtd",,"StudyData",$AH$2, "Bar", "", "Close","D",AH7,,,,,"T") -> 37.85 | AJ7: =(AI7-AI8)/AI8 -> 0.006113769272 | AK7: -0.036 | AL7: 5.4 | AN7: 0.005 | AO7: 10 | AP7: 7 | AQ7: 0.0075 | AS7: 0 | AT7: =RTD("cqg.rtd",,"StudyData",$AS$2, "Bar", "", "Close","D",AS7,,,,,"T") -> 101.99 | AU7: =(AT7-AT8)/AT8 -> 0.005818540434 | AV7: -0.036 | AW7: 5.4 | AY7: 0.005 | AZ7: 10 | BA7: 7 | BB7: 0.0075 | BD7: 0 | BE7: =RTD("cqg.rtd",,"StudyData",$BD$2, "Bar", "", "Close","D",BD7,,,,,"T") -> 139.14 | BF7: =(BE7-BE8)/BE8 -> 0.005201560468 | BG7: -0.036 | BH7: 5.4 | BJ7: 0.005 | BK7: 10 | BL7: 7 | BM7: 0.0075 | BO7: 0 | BP7: =RTD("cqg.rtd",,"StudyData",$BO$2, "Bar", "", "Close","D",BO7,,,,,"T") -> 150.31 | BQ7: =(BP7-BP8)/BP8 -> 0.002868961836 | BR7: -0.036 | BS7: 5.4 | BU7: 0.005 | BV7: 10 | BW7: 7 | BX7: 0.0075 | BZ7: 0 | CA7: =RTD("cqg.rtd",,"StudyData",$BZ$2, "Bar", "", "Close","D",BZ7,,,,,"T") -> 90.1 | CB7: =(CA7-CA8)/CA8 -> 0.001333629695 | CC7: -0.036 | CD7: 5.4 | CF7: 0.005 | CG7: 10 | CH7: 7 | CI7: 0.0075 | CK7: 0 | CL7: =RTD("cqg.rtd",,"StudyData",$CK$2, "Bar", "", "Close","D",CK7,,,,,"T") -> 444.77 | CM7: =(CL7-CL8)/CL8 -> -0.0006066870394 | CN7: -0.036 | CO7: 5.4 | CQ7: 0.005 | CR7: 10 | CS7: 7 | CT7: 0.0075 | CV7: 0 | CW7: =RTD("cqg.rtd",,"StudyData",$CV$2, "Bar", "", "Close","D",CV7,,,,,"T") -> 80.05 | CX7: =(CW7-CW8)/CW8 -> -0.003857640617 | CY7: -0.036 | CZ7: 5.4 | DB7: 0.005 | DC7: 10 | DD7: 7 | DE7: 0.0075 | DG7: 0 | DH7: =RTD("cqg.rtd",,"StudyData",$DG$2, "Bar", "", "Close","D",DG7,,,,,"T") -> 182.87 | DI7: =(DH7-DH8)/DH8 -> -0.006842991365 | DJ7: -0.036 | DK7: 5.4 | DM7: 0.005 | DN7: 10 | DO7: 7 | DP7: 0.0075 | DR7: 0 | DS7: =RTD("cqg.rtd",,"StudyData",$DR$2, "Bar", "", "Close","D",DR7,,,,,"T") -> 65.28 | DT7: =(DS7-DS8)/DS8 -> -0.03403373779 | DU7: -0.036 | DV7: 5.4 | DX7: 0.005 | DY7: 10 | DZ7: 7 | EA7: 0.0075
A8: =A7-1 -> -1 | B8: =RTD("cqg.rtd",,"StudyData",$A$2, "Bar", "", "Close","D",A8,,,,,"T") -> 79.38 | C8: =(B8-B9)/B9 -> 0.01521933751 | D8: -0.03575 | E8: 6.3 | G8: 0.01 | H8: 10 | I8: 8 | J8: 0.015 | L8: =L7-1 -> -1 | M8: =RTD("cqg.rtd",,"StudyData",$L$2, "Bar", "", "Close","D",L8,,,,,"T") -> 76.17 | N8: =(M8-M9)/M9 -> 0.006474630021 | O8: -0.03575 | P8: 6.3 | R8: 0.01 | S8: 10 | T8: 8 | U8: 0.015 | W8: =W7-1 -> -1 | X8: =RTD("cqg.rtd",,"StudyData",$W$2, "Bar", "", "Close","D",W8,,,,,"T") -> 49.66 | Y8: =(X8-X9)/X9 -> 0.02097039474 | Z8: -0.03575 | AA8: 6.3 | AC8: 0.01 | AD8: 10 | AE8: 8 | AF8: 0.015 | AH8: =AH7-1 -> -1 | AI8: =RTD("cqg.rtd",,"StudyData",$AH$2, "Bar", "", "Close","D",AH8,,,,,"T") -> 37.62 | AJ8: =(AI8-AI9)/AI9 -> 0.01374292643 | AK8: -0.03575 | AL8: 6.3 | AN8: 0.01 | AO8: 10 | AP8: 8 | AQ8: 0.015 | AS8: =AS7-1 -> -1 | AT8: =RTD("cqg.rtd",,"StudyData",$AS$2, "Bar", "", "Close","D",AS8,,,,,"T") -> 101.4 | AU8: =(AT8-AT9)/AT9 -> 0.01817451551 | AV8: -0.03575 | AW8: 6.3 | AY8: 0.01 | AZ8: 10 | BA8: 8 | BB8: 0.015 | BD8: =BD7-1 -> -1 | BE8: =RTD("cqg.rtd",,"StudyData",$BD$2, "Bar", "", "Close","D",BD8,,,,,"T") -> 138.42 | BF8: =(BE8-BE9)/BE9 -> 0.009554372402 | BG8: -0.03575 | BH8: 6.3 | BJ8: 0.01 | BK8: 10 | BL8: 8 | BM8: 0.015 | BO8: =BO7-1 -> -1 | BP8: =RTD("cqg.rtd",,"StudyData",$BO$2, "Bar", "", "Close","D",BO8,,,,,"T") -> 149.88 | BQ8: =(BP8-BP9)/BP9 -> 0.01876019576 | BR8: -0.03575 | BS8: 6.3 | BU8: 0.01 | BV8: 10 | BW8: 8 | BX8: 0.015 | BZ8: =BZ7-1 -> -1 | CA8: =RTD("cqg.rtd",,"StudyData",$BZ$2, "Bar", "", "Close","D",BZ8,,,,,"T") -> 89.98 | CB8: =(CA8-CA9)/CA9 -> 0.009423378954 | CC8: -0.03575 | CD8: 6.3 | CF8: 0.01 | CG8: 10 | CH8: 8 | CI8: 0.015 | CK8: =CK7-1 -> -1 | CL8: =RTD("cqg.rtd",,"StudyData",$CK$2, "Bar", "", "Close","D",CK8,,,,,"T") -> 445.04 | CM8: =(CL8-CL9)/CL9 -> 0.01614265817 | CN8: -0.03575 | CO8: 6.3 | CQ8: 0.01 | CR8: 10 | CS8: 8 | CT8: 0.015 | CV8: =CV7-1 -> -1 | CW8: =RTD("cqg.rtd",,"StudyData",$CV$2, "Bar", "", "Close","D",CV8,,,,,"T") -> 80.36 | CX8: =(CW8-CW9)/CW9 -> -0.008146136756 | CY8: -0.03575 | CZ8: 6.3 | DB8: 0.01 | DC8: 10 | DD8: 8 | DE8: 0.015 | DG8: =DG7-1 -> -1 | DH8: =RTD("cqg.rtd",,"StudyData",$DG$2, "Bar", "", "Close","D",DG8,,,,,"T") -> 184.13 | DI8: =(DH8-DH9)/DH9 -> 0.02900413546 | DJ8: -0.03575 | DK8: 6.3 | DM8: 0.01 | DN8: 10 | DO8: 8 | DP8: 0.015 | DR8: =DR7-1 -> -1 | DS8: =RTD("cqg.rtd",,"StudyData",$DR$2, "Bar", "", "Close","D",DR8,,,,,"T") -> 67.58 | DT8: =(DS8-DS9)/DS9 -> 0.01992152128 | DU8: -0.03575 | DV8: 6.3 | DX8: 0.01 | DY8: 10 | DZ8: 8 | EA8: 0.015
A9: =A8-1 -> -2 | B9: =RTD("cqg.rtd",,"StudyData",$A$2, "Bar", "", "Close","D",A9,,,,,"T") -> 78.19 | C9: -0.008244545916 | D9: -0.0355 | E9: 7.2 | G9: 0.015 | H9: 10 | I9: 9 | J9: 0.0225 | L9: =L8-1 -> -2 | M9: =RTD("cqg.rtd",,"StudyData",$L$2, "Bar", "", "Close","D",L9,,,,,"T") -> 75.68 | N9: -0.005388355894 | O9: -0.0355 | P9: 7.2 | R9: 0.015 | S9: 10 | T9: 9 | U9: 0.0225 | W9: =W8-1 -> -2 | X9: =RTD("cqg.rtd",,"StudyData",$W$2, "Bar", "", "Close","D",W9,,,,,"T") -> 48.64 | Y9: -0.002461033634 | Z9: -0.0355 | AA9: 7.2 | AC9: 0.015 | AD9: 10 | AE9: 9 | AF9: 0.0225 | AH9: =AH8-1 -> -2 | AI9: =RTD("cqg.rtd",,"StudyData",$AH$2, "Bar", "", "Close","D",AH9,,,,,"T") -> 37.11 | AJ9: 0.005963675793 | AK9: -0.0355 | AL9: 7.2 | AN9: 0.015 | AO9: 10 | AP9: 9 | AQ9: 0.0225 | AS9: =AS8-1 -> -2 | AT9: =RTD("cqg.rtd",,"StudyData",$AS$2, "Bar", "", "Close","D",AS9,,,,,"T") -> 99.59 | AU9: -0.003502101261 | AV9: -0.0355 | AW9: 7.2 | AY9: 0.015 | AZ9: 10 | BA9: 9 | BB9: 0.0225 | BD9: =BD8-1 -> -2 | BE9: =RTD("cqg.rtd",,"StudyData",$BD$2, "Bar", "", "Close","D",BD9,,,,,"T") -> 137.11 | BF9: -0.01103577611 | BG9: -0.0355 | BH9: 7.2 | BJ9: 0.015 | BK9: 10 | BL9: 9 | BM9: 0.0225 | BO9: =BO8-1 -> -2 | BP9: =RTD("cqg.rtd",,"StudyData",$BO$2, "Bar", "", "Close","D",BO9,,,,,"T") -> 147.12 | BQ9: 0.003273322422 | BR9: -0.0355 | BS9: 7.2 | BU9: 0.015 | BV9: 10 | BW9: 9 | BX9: 0.0225 | BZ9: =BZ8-1 -> -2 | CA9: =RTD("cqg.rtd",,"StudyData",$BZ$2, "Bar", "", "Close","D",BZ9,,,,,"T") -> 89.14 | CB9: 0.0008982708287 | CC9: -0.0355 | CD9: 7.2 | CF9: 0.015 | CG9: 10 | CH9: 9 | CI9: 0.0225 | CK9: =CK8-1 -> -2 | CL9: =RTD("cqg.rtd",,"StudyData",$CK$2, "Bar", "", "Close","D",CK9,,,,,"T") -> 437.97 | CM9: 0.0004111560337 | CN9: -0.0355 | CO9: 7.2 | CQ9: 0.015 | CR9: 10 | CS9: 9 | CT9: 0.0225 | CV9: =CV8-1 -> -2 | CW9: =RTD("cqg.rtd",,"StudyData",$CV$2, "Bar", "", "Close","D",CV9,,,,,"T") -> 81.02 | CX9: 0.01465247339 | CY9: -0.0355 | CZ9: 7.2 | DB9: 0.015 | DC9: 10 | DD9: 9 | DE9: 0.0225 | DG9: =DG8-1 -> -2 | DH9: =RTD("cqg.rtd",,"StudyData",$DG$2, "Bar", "", "Close","D",DG9,,,,,"T") -> 178.94 | DI9: 0.00302690583 | DJ9: -0.0355 | DK9: 7.2 | DM9: 0.015 | DN9: 10 | DO9: 9 | DP9: 0.0225 | DR9: =DR8-1 -> -2 | DS9: =RTD("cqg.rtd",,"StudyData",$DR$2, "Bar", "", "Close","D",DR9,,,,,"T") -> 66.26 | DT9: -0.003309265945 | DU9: -0.0355 | DV9: 7.2 | DX9: 0.015 | DY9: 10 | DZ9: 9 | EA9: 0.0225
A10: -3 | B10: =RTD("cqg.rtd",,"StudyData",$A$2, "Bar", "", "Close","D",A10,,,,,"T") -> 78.84 | C10: -0.0002536139995 | D10: -0.03525 | E10: 8.1 | G10: =G11-0.5% -> 0.02 | H10: 10 | I10: 10 | J10: 0.03 | L10: -3 | M10: =RTD("cqg.rtd",,"StudyData",$L$2, "Bar", "", "Close","D",L10,,,,,"T") -> 76.09 | N10: 0.0005259697567 | O10: -0.03525 | P10: 8.1 | R10: =R11-0.5% -> 0.02 | S10: 10 | T10: 10 | U10: 0.03 | W10: -3 | X10: =RTD("cqg.rtd",,"StudyData",$W$2, "Bar", "", "Close","D",W10,,,,,"T") -> 48.76 | Y10: -0.005709624796 | Z10: -0.03525 | AA10: 8.1 | AC10: =AC11-0.5% -> 0.02 | AD10: 10 | AE10: 10 | AF10: 0.03 | AH10: -3 | AI10: =RTD("cqg.rtd",,"StudyData",$AH$2, "Bar", "", "Close","D",AH10,,,,,"T") -> 36.89 | AJ10: -0.01125703565 | AK10: -0.03525 | AL10: 8.1 | AN10: =AN11-0.5% -> 0.02 | AO10: 10 | AP10: 10 | AQ10: 0.03 | AS10: -3 | AT10: =RTD("cqg.rtd",,"StudyData",$AS$2, "Bar", "", "Close","D",AS10,,,,,"T") -> 99.94 | AU10: -0.001099450275 | AV10: -0.03525 | AW10: 8.1 | AY10: =AY11-0.5% -> 0.02 | AZ10: 10 | BA10: 10 | BB10: 0.03 | BD10: -3 | BE10: =RTD("cqg.rtd",,"StudyData",$BD$2, "Bar", "", "Close","D",BD10,,,,,"T") -> 138.64 | BF10: -0.004809417845 | BG10: -0.03525 | BH10: 8.1 | BJ10: =BJ11-0.5% -> 0.02 | BK10: 10 | BL10: 10 | BM10: 0.03 | BO10: -3 | BP10: =RTD("cqg.rtd",,"StudyData",$BO$2, "Bar", "", "Close","D",BO10,,,,,"T") -> 146.64 | BQ10: -0.02428637967 | BR10: -0.03525 | BS10: 8.1 | BU10: =BU11-0.5% -> 0.02 | BV10: 10 | BW10: 10 | BX10: 0.03 | BZ10: -3 | CA10: =RTD("cqg.rtd",,"StudyData",$BZ$2, "Bar", "", "Close","D",BZ10,,,,,"T") -> 89.06 | CB10: -0.003357206804 | CC10: -0.03525 | CD10: 8.1 | CF10: =CF11-0.5% -> 0.02 | CG10: 10 | CH10: 10 | CI10: 0.03 | CK10: -3 | CL10: =RTD("cqg.rtd",,"StudyData",$CK$2, "Bar", "", "Close","D",CK10,,,,,"T") -> 437.79 | CM10: -0.01245178318 | CN10: -0.03525 | CO10: 8.1 | CQ10: =CQ11-0.5% -> 0.02 | CR10: 10 | CS10: 10 | CT10: 0.03 | CV10: -3 | CW10: =RTD("cqg.rtd",,"StudyData",$CV$2, "Bar", "", "Close","D",CV10,,,,,"T") -> 79.85 | CX10: 0.003266742053 | CY10: -0.03525 | CZ10: 8.1 | DB10: =DB11-0.5% -> 0.02 | DC10: 10 | DD10: 10 | DE10: 0.03 | DG10: -3 | DH10: =RTD("cqg.rtd",,"StudyData",$DG$2, "Bar", "", "Close","D",DG10,,,,,"T") -> 178.4 | DI10: -0.01398330846 | DJ10: -0.03525 | DK10: 8.1 | DM10: =DM11-0.5% -> 0.02 | DN10: 10 | DO10: 10 | DP10: 0.03 | DR10: -3 | DS10: =RTD("cqg.rtd",,"StudyData",$DR$2, "Bar", "", "Close","D",DR10,,,,,"T") -> 66.48 | DT10: -0.01700428804 | DU10: -0.03525 | DV10: 8.1 | DX10: =DX11-0.5% -> 0.02 | DY10: 10 | DZ10: 10 | EA10: 0.03
A11: -4 | B11: =RTD("cqg.rtd",,"StudyData",$A$2, "Bar", "", "Close","D",A11,,,,,"T") -> 78.86 | C11: 0.005610813568 | D11: -0.035 | E11: 9 | G11: 0.025 | H11: 100 | I11: 11 | J11: 0.0375 | L11: -4 | M11: =RTD("cqg.rtd",,"StudyData",$L$2, "Bar", "", "Close","D",L11,,,,,"T") -> 76.05 | N11: -0.001968503937 | O11: -0.035 | P11: 9 | R11: 0.025 | S11: 100 | T11: 11 | U11: 0.0375 | W11: -4 | X11: =RTD("cqg.rtd",,"StudyData",$W$2, "Bar", "", "Close","D",W11,,,,,"T") -> 49.04 | Y11: 0.004095004095 | Z11: -0.035 | AA11: 9 | AB11: 1.667 | AC11: 0.025 | AD11: 100 | AE11: 11 | AF11: 0.0375 | AH11: -4 | AI11: =RTD("cqg.rtd",,"StudyData",$AH$2, "Bar", "", "Close","D",AH11,,,,,"T") -> 37.31 | AJ11: 0 | AK11: -0.035 | AL11: 9 | AM11: 1.667 | AN11: 0.025 | AO11: 100 | AP11: 11 | AQ11: 0.0375 | AS11: -4 | AT11: =RTD("cqg.rtd",,"StudyData",$AS$2, "Bar", "", "Close","D",AS11,,,,,"T") -> 100.05 | AU11: 0.009382566586 | AV11: -0.035 | AW11: 9 | AX11: 1.667 | AY11: 0.025 | AZ11: 100 | BA11: 11 | BB11: 0.0375 | BD11: -4 | BE11: =RTD("cqg.rtd",,"StudyData",$BD$2, "Bar", "", "Close","D",BD11,,,,,"T") -> 139.31 | BF11: 0.004905143187 | BG11: -0.035 | BH11: 9 | BI11: 1.667 | BJ11: 0.025 | BK11: 100 | BL11: 11 | BM11: 0.0375 | BO11: -4 | BP11: =RTD("cqg.rtd",,"StudyData",$BO$2, "Bar", "", "Close","D",BO11,,,,,"T") -> 150.29 | BQ11: 0.01609086607 | BR11: -0.035 | BS11: 9 | BT11: 1.667 | BU11: 0.025 | BV11: 100 | BW11: 11 | BX11: 0.0375 | BZ11: -4 | CA11: =RTD("cqg.rtd",,"StudyData",$BZ$2, "Bar", "", "Close","D",BZ11,,,,,"T") -> 89.36 | CB11: 0.01476266182 | CC11: -0.035 | CD11: 9 | CE11: 1.667 | CF11: 0.025 | CG11: 100 | CH11: 11 | CI11: 0.0375 | CK11: -4 | CL11: =RTD("cqg.rtd",,"StudyData",$CK$2, "Bar", "", "Close","D",CK11,,,,,"T") -> 443.31 | CM11: 0.01145360378 | CN11: -0.035 | CO11: 9 | CP11: 1.667 | CQ11: 0.025 | CR11: 100 | CS11: 11 | CT11: 0.0375 | CV11: -4 | CW11: =RTD("cqg.rtd",,"StudyData",$CV$2, "Bar", "", "Close","D",CV11,,,,,"T") -> 79.59 | CX11: 0.01491966335 | CY11: -0.035 | CZ11: 9 | DA11: 1.667 | DB11: 0.025 | DC11: 100 | DD11: 11 | DE11: 0.0375 | DG11: -4 | DH11: =RTD("cqg.rtd",,"StudyData",$DG$2, "Bar", "", "Close","D",DG11,,,,,"T") -> 180.93 | DI11: 0.02486688569 | DJ11: -0.035 | DK11: 9 | DL11: 1.667 | DM11: 0.025 | DN11: 100 | DO11: 11 | DP11: 0.0375 | DR11: -4 | DS11: =RTD("cqg.rtd",,"StudyData",$DR$2, "Bar", "", "Close","D",DR11,,,,,"T") -> 67.63 | DT11: 0.01470367592 | DU11: -0.035 | DV11: 9 | DW11: 1.667 | DX11: 0.025 | DY11: 100 | DZ11: 11 | EA11: 0.0375
A12: -5 | B12: =RTD("cqg.rtd",,"StudyData",$A$2, "Bar", "", "Close","D",A12,,,,,"T") -> 78.42 | C12: 0.0002551020408 | D12: -0.03475 | E12: 9.9 | L12: -5 | M12: =RTD("cqg.rtd",,"StudyData",$L$2, "Bar", "", "Close","D",L12,,,,,"T") -> 76.2 | N12: 0.003820313529 | O12: -0.03475 | P12: 9.9 | W12: -5 | X12: =RTD("cqg.rtd",,"StudyData",$W$2, "Bar", "", "Close","D",W12,,,,,"T") -> 48.84 | Y12: -0.003061849357 | Z12: -0.03475 | AA12: 9.9 | AH12: -5 | AI12: =RTD("cqg.rtd",,"StudyData",$AH$2, "Bar", "", "Close","D",AH12,,,,,"T") -> 37.31 | AJ12: -0.01086956522 | AK12: -0.03475 | AL12: 9.9 | AS12: -5 | AT12: =RTD("cqg.rtd",,"StudyData",$AS$2, "Bar", "", "Close","D",AS12,,,,,"T") -> 99.12 | AU12: -0.001611603546 | AV12: -0.03475 | AW12: 9.9 | BD12: -5 | BE12: =RTD("cqg.rtd",,"StudyData",$BD$2, "Bar", "", "Close","D",BD12,,,,,"T") -> 138.63 | BF12: -0.009714979641 | BG12: -0.03475 | BH12: 9.9 | BO12: -5 | BP12: =RTD("cqg.rtd",,"StudyData",$BO$2, "Bar", "", "Close","D",BO12,,,,,"T") -> 147.91 | BQ12: -0.004442350407 | BR12: -0.03475 | BS12: 9.9 | BZ12: -5 | CA12: =RTD("cqg.rtd",,"StudyData",$BZ$2, "Bar", "", "Close","D",BZ12,,,,,"T") -> 88.06 | CB12: 0.0002271694684 | CC12: -0.03475 | CD12: 9.9 | CK12: -5 | CL12: =RTD("cqg.rtd",,"StudyData",$CK$2, "Bar", "", "Close","D",CK12,,,,,"T") -> 438.29 | CM12: -0.003705219131 | CN12: -0.03475 | CO12: 9.9 | CV12: -5 | CW12: =RTD("cqg.rtd",,"StudyData",$CV$2, "Bar", "", "Close","D",CV12,,,,,"T") -> 78.42 | CX12: 0.01659320716 | CY12: -0.03475 | CZ12: 9.9 | DG12: -5 | DH12: =RTD("cqg.rtd",,"StudyData",$DG$2, "Bar", "", "Close","D",DG12,,,,,"T") -> 176.54 | DI12: 0.00221402214 | DJ12: -0.03475 | DK12: 9.9 | DR12: -5 | DS12: =RTD("cqg.rtd",,"StudyData",$DR$2, "Bar", "", "Close","D",DR12,,,,,"T") -> 66.65 | DT12: -0.00818452381 | DU12: -0.03475 | DV12: 9.9
A13: -6 | B13: =RTD("cqg.rtd",,"StudyData",$A$2, "Bar", "", "Close","D",A13,,,,,"T") -> 78.4 | C13: -0.00406504065 | D13: -0.0345 | E13: 10.8 | L13: -6 | M13: =RTD("cqg.rtd",,"StudyData",$L$2, "Bar", "", "Close","D",L13,,,,,"T") -> 75.91 | N13: -0.01364345114 | O13: -0.0345 | P13: 10.8 | W13: -6 | X13: =RTD("cqg.rtd",,"StudyData",$W$2, "Bar", "", "Close","D",W13,,,,,"T") -> 48.99 | Y13: -0.01369035635 | Z13: -0.0345 | AA13: 10.8 | AH13: -6 | AI13: =RTD("cqg.rtd",,"StudyData",$AH$2, "Bar", "", "Close","D",AH13,,,,,"T") -> 37.72 | AJ13: -0.004486671945 | AK13: -0.0345 | AL13: 10.8 | AS13: -6 | AT13: =RTD("cqg.rtd",,"StudyData",$AS$2, "Bar", "", "Close","D",AS13,,,,,"T") -> 99.28 | AU13: -0.003212851406 | AV13: -0.0345 | AW13: 10.8 | BD13: -6 | BE13: =RTD("cqg.rtd",,"StudyData",$BD$2, "Bar", "", "Close","D",BD13,,,,,"T") -> 139.99 | BF13: -0.01988377792 | BG13: -0.0345 | BH13: 10.8 | BO13: -6 | BP13: =RTD("cqg.rtd",,"StudyData",$BO$2, "Bar", "", "Close","D",BO13,,,,,"T") -> 148.57 | BQ13: -0.02519519717 | BR13: -0.0345 | BS13: 10.8 | BZ13: -6 | CA13: =RTD("cqg.rtd",,"StudyData",$BZ$2, "Bar", "", "Close","D",BZ13,,,,,"T") -> 88.04 | CB13: -0.004972875226 | CC13: -0.0345 | CD13: 10.8 | CK13: -6 | CL13: =RTD("cqg.rtd",,"StudyData",$CK$2, "Bar", "", "Close","D",CK13,,,,,"T") -> 439.92 | CM13: -0.01709229841 | CN13: -0.0345 | CO13: 10.8 | CV13: -6 | CW13: =RTD("cqg.rtd",,"StudyData",$CV$2, "Bar", "", "Close","D",CV13,,,,,"T") -> 77.14 | CX13: -0.03005155287 | CY13: -0.0345 | CZ13: 10.8 | DG13: -6 | DH13: =RTD("cqg.rtd",,"StudyData",$DG$2, "Bar", "", "Close","D",DG13,,,,,"T") -> 176.15 | DI13: -0.01855359929 | DJ13: -0.0345 | DK13: 10.8 | DR13: -6 | DS13: =RTD("cqg.rtd",,"StudyData",$DR$2, "Bar", "", "Close","D",DR13,,,,,"T") -> 67.2 | DT13: -0.01292596945 | DU13: -0.0345 | DV13: 10.8
A14: -7 | B14: =RTD("cqg.rtd",,"StudyData",$A$2, "Bar", "", "Close","D",A14,,,,,"T") -> 78.72 | C14: 0.004209720628 | D14: -0.03425 | E14: 11.7 | L14: -7 | M14: =RTD("cqg.rtd",,"StudyData",$L$2, "Bar", "", "Close","D",L14,,,,,"T") -> 76.96 | N14: 0.003389830508 | O14: -0.03425 | P14: 11.7 | W14: -7 | X14: =RTD("cqg.rtd",,"StudyData",$W$2, "Bar", "", "Close","D",W14,,,,,"T") -> 49.67 | Y14: 0.003637098404 | Z14: -0.03425 | AA14: 11.7 | AH14: -7 | AI14: =RTD("cqg.rtd",,"StudyData",$AH$2, "Bar", "", "Close","D",AH14,,,,,"T") -> 37.89 | AJ14: 0.01013063183 | AK14: -0.03425 | AL14: 11.7 | AS14: -7 | AT14: =RTD("cqg.rtd",,"StudyData",$AS$2, "Bar", "", "Close","D",AS14,,,,,"T") -> 99.6 | AU14: -0.005591054313 | AV14: -0.03425 | AW14: 11.7 | BD14: -7 | BE14: =RTD("cqg.rtd",,"StudyData",$BD$2, "Bar", "", "Close","D",BD14,,,,,"T") -> 142.83 | BF14: 0.005986758698 | BG14: -0.03425 | BH14: 11.7 | BO14: -7 | BP14: =RTD("cqg.rtd",,"StudyData",$BO$2, "Bar", "", "Close","D",BO14,,,,,"T") -> 152.41 | BQ14: -0.01397425115 | BR14: -0.03425 | BS14: 11.7 | BZ14: -7 | CA14: =RTD("cqg.rtd",,"StudyData",$BZ$2, "Bar", "", "Close","D",BZ14,,,,,"T") -> 88.48 | CB14: 0.006140550375 | CC14: -0.03425 | CD14: 11.7 | CK14: -7 | CL14: =RTD("cqg.rtd",,"StudyData",$CK$2, "Bar", "", "Close","D",CK14,,,,,"T") -> 447.57 | CM14: -0.002673975533 | CN14: -0.03425 | CO14: 11.7 | CV14: -7 | CW14: =RTD("cqg.rtd",,"StudyData",$CV$2, "Bar", "", "Close","D",CV14,,,,,"T") -> 79.53 | CX14: 0.02751937984 | CY14: -0.03425 | CZ14: 11.7 | DG14: -7 | DH14: =RTD("cqg.rtd",,"StudyData",$DG$2, "Bar", "", "Close","D",DG14,,,,,"T") -> 179.48 | DI14: -0.009218879382 | DJ14: -0.03425 | DK14: 11.7 | DR14: -7 | DS14: =RTD("cqg.rtd",,"StudyData",$DR$2, "Bar", "", "Close","D",DR14,,,,,"T") -> 68.08 | DT14: -0.004387247733 | DU14: -0.03425 | DV14: 11.7
A15: -8 | B15: =RTD("cqg.rtd",,"StudyData",$A$2, "Bar", "", "Close","D",A15,,,,,"T") -> 78.39 | C15: 0.01213686249 | D15: -0.034 | E15: 12.6 | L15: -8 | M15: =RTD("cqg.rtd",,"StudyData",$L$2, "Bar", "", "Close","D",L15,,,,,"T") -> 76.7 | N15: -0.002471062557 | O15: -0.034 | P15: 12.6 | W15: -8 | X15: =RTD("cqg.rtd",,"StudyData",$W$2, "Bar", "", "Close","D",W15,,,,,"T") -> 49.49 | Y15: -0.008216432866 | Z15: -0.034 | AA15: 12.6 | AH15: -8 | AI15: =RTD("cqg.rtd",,"StudyData",$AH$2, "Bar", "", "Close","D",AH15,,,,,"T") -> 37.51 | AJ15: -0.001065246338 | AK15: -0.034 | AL15: 12.6 | AS15: -8 | AT15: =RTD("cqg.rtd",,"StudyData",$AS$2, "Bar", "", "Close","D",AS15,,,,,"T") -> 100.16 | AU15: 0.003406131036 | AV15: -0.034 | AW15: 12.6 | BD15: -8 | BE15: =RTD("cqg.rtd",,"StudyData",$BD$2, "Bar", "", "Close","D",BD15,,,,,"T") -> 141.98 | BF15: 0.0192390524 | BG15: -0.034 | BH15: 12.6 | BO15: -8 | BP15: =RTD("cqg.rtd",,"StudyData",$BO$2, "Bar", "", "Close","D",BO15,,,,,"T") -> 154.57 | BQ15: 0.001555109182 | BR15: -0.034 | BS15: 12.6 | BZ15: -8 | CA15: =RTD("cqg.rtd",,"StudyData",$BZ$2, "Bar", "", "Close","D",BZ15,,,,,"T") -> 87.94 | CB15: 0.006523978482 | CC15: -0.034 | CD15: 12.6 | CK15: -8 | CL15: =RTD("cqg.rtd",,"StudyData",$CK$2, "Bar", "", "Close","D",CK15,,,,,"T") -> 448.77 | CM15: 0.005038968019 | CN15: -0.034 | CO15: 12.6 | CV15: -8 | CW15: =RTD("cqg.rtd",,"StudyData",$CV$2, "Bar", "", "Close","D",CV15,,,,,"T") -> 77.4 | CX15: 0.01308900524 | CY15: -0.034 | CZ15: 12.6 | DG15: -8 | DH15: =RTD("cqg.rtd",,"StudyData",$DG$2, "Bar", "", "Close","D",DG15,,,,,"T") -> 181.15 | DI15: 0.005104588581 | DJ15: -0.034 | DK15: 12.6 | DR15: -8 | DS15: =RTD("cqg.rtd",,"StudyData",$DR$2, "Bar", "", "Close","D",DR15,,,,,"T") -> 68.38 | DT15: -0.008698173384 | DU15: -0.034 | DV15: 12.6
A16: -9 | B16: =RTD("cqg.rtd",,"StudyData",$A$2, "Bar", "", "Close","D",A16,,,,,"T") -> 77.45 | C16: 0.01268305439 | D16: -0.03375 | E16: 13.5 | L16: -9 | M16: =RTD("cqg.rtd",,"StudyData",$L$2, "Bar", "", "Close","D",L16,,,,,"T") -> 76.89 | N16: 0.019896538 | O16: -0.03375 | P16: 13.5 | W16: -9 | X16: =RTD("cqg.rtd",,"StudyData",$W$2, "Bar", "", "Close","D",W16,,,,,"T") -> 49.9 | Y16: 0.01484645109 | Z16: -0.03375 | AA16: 13.5 | AH16: -9 | AI16: =RTD("cqg.rtd",,"StudyData",$AH$2, "Bar", "", "Close","D",AH16,,,,,"T") -> 37.55 | AJ16: -0.006876487702 | AK16: -0.03375 | AL16: 13.5 | AS16: -9 | AT16: =RTD("cqg.rtd",,"StudyData",$AS$2, "Bar", "", "Close","D",AS16,,,,,"T") -> 99.82 | AU16: -0.007753479125 | AV16: -0.03375 | AW16: 13.5 | BD16: -9 | BE16: =RTD("cqg.rtd",,"StudyData",$BD$2, "Bar", "", "Close","D",BD16,,,,,"T") -> 139.3 | BF16: 0.01523212594 | BG16: -0.03375 | BH16: 13.5 | BO16: -9 | BP16: =RTD("cqg.rtd",,"StudyData",$BO$2, "Bar", "", "Close","D",BO16,,,,,"T") -> 154.33 | BQ16: -0.02366040362 | BR16: -0.03375 | BS16: 13.5 | BZ16: -9 | CA16: =RTD("cqg.rtd",,"StudyData",$BZ$2, "Bar", "", "Close","D",BZ16,,,,,"T") -> 87.37 | CB16: -0.01153976694 | CC16: -0.03375 | CD16: 13.5 | CK16: -9 | CL16: =RTD("cqg.rtd",,"StudyData",$CK$2, "Bar", "", "Close","D",CK16,,,,,"T") -> 446.52 | CM16: -0.009999334856 | CN16: -0.03375 | CO16: 13.5 | CV16: -9 | CW16: =RTD("cqg.rtd",,"StudyData",$CV$2, "Bar", "", "Close","D",CV16,,,,,"T") -> 76.4 | CX16: 0.005924950625 | CY16: -0.03375 | CZ16: 13.5 | DG16: -9 | DH16: =RTD("cqg.rtd",,"StudyData",$DG$2, "Bar", "", "Close","D",DG16,,,,,"T") -> 180.23 | DI16: -0.02552041092 | DJ16: -0.03375 | DK16: 13.5 | DR16: -9 | DS16: =RTD("cqg.rtd",,"StudyData",$DR$2, "Bar", "", "Close","D",DR16,,,,,"T") -> 68.98 | DT16: -0.01863707498 | DU16: -0.03375 | DV16: 13.5
A17: -10 | B17: =RTD("cqg.rtd",,"StudyData",$A$2, "Bar", "", "Close","D",A17,,,,,"T") -> 76.48 | C17: 0.0009161104567 | D17: -0.0335 | E17: 14.4 | L17: -10 | M17: =RTD("cqg.rtd",,"StudyData",$L$2, "Bar", "", "Close","D",L17,,,,,"T") -> 75.39 | N17: 0.006273358249 | O17: -0.0335 | P17: 14.4 | W17: -10 | X17: =RTD("cqg.rtd",,"StudyData",$W$2, "Bar", "", "Close","D",W17,,,,,"T") -> 49.17 | Y17: 0.000814166497 | Z17: -0.0335 | AA17: 14.4 | AH17: -10 | AI17: =RTD("cqg.rtd",,"StudyData",$AH$2, "Bar", "", "Close","D",AH17,,,,,"T") -> 37.81 | AJ17: -0.006307490145 | AK17: -0.0335 | AL17: 14.4 | AS17: -10 | AT17: =RTD("cqg.rtd",,"StudyData",$AS$2, "Bar", "", "Close","D",AS17,,,,,"T") -> 100.6 | AU17: -0.01420872122 | AV17: -0.0335 | AW17: 14.4 | BD17: -10 | BE17: =RTD("cqg.rtd",,"StudyData",$BD$2, "Bar", "", "Close","D",BD17,,,,,"T") -> 137.21 | BF17: 0.002118025124 | BG17: -0.0335 | BH17: 14.4 | BO17: -10 | BP17: =RTD("cqg.rtd",,"StudyData",$BO$2, "Bar", "", "Close","D",BO17,,,,,"T") -> 158.07 | BQ17: -0.02105654301 | BR17: -0.0335 | BS17: 14.4 | BZ17: -10 | CA17: =RTD("cqg.rtd",,"StudyData",$BZ$2, "Bar", "", "Close","D",BZ17,,,,,"T") -> 88.39 | CB17: -0.007968574635 | CC17: -0.0335 | CD17: 14.4 | CK17: -10 | CL17: =RTD("cqg.rtd",,"StudyData",$CK$2, "Bar", "", "Close","D",CK17,,,,,"T") -> 451.03 | CM17: -0.01263134851 | CN17: -0.0335 | CO17: 14.4 | CV17: -10 | CW17: =RTD("cqg.rtd",,"StudyData",$CV$2, "Bar", "", "Close","D",CV17,,,,,"T") -> 75.95 | CX17: -0.01568170036 | CY17: -0.0335 | CZ17: 14.4 | DG17: -10 | DH17: =RTD("cqg.rtd",,"StudyData",$DG$2, "Bar", "", "Close","D",DG17,,,,,"T") -> 184.95 | DI17: -0.02344368763 | DJ17: -0.0335 | DK17: 14.4 | DR17: -10 | DS17: =RTD("cqg.rtd",,"StudyData",$DR$2, "Bar", "", "Close","D",DR17,,,,,"T") -> 70.29 | DT17: -0.01278089888 | DU17: -0.0335 | DV17: 14.4
A18: -11 | B18: =RTD("cqg.rtd",,"StudyData",$A$2, "Bar", "", "Close","D",A18,,,,,"T") -> 76.41 | D18: -0.03325 | E18: 15.3 | L18: -11 | M18: =RTD("cqg.rtd",,"StudyData",$L$2, "Bar", "", "Close","D",L18,,,,,"T") -> 74.92 | O18: -0.03325 | P18: 15.3 | W18: -11 | X18: =RTD("cqg.rtd",,"StudyData",$W$2, "Bar", "", "Close","D",W18,,,,,"T") -> 49.13 | Z18: -0.03325 | AA18: 15.3 | AH18: -11 | AI18: =RTD("cqg.rtd",,"StudyData",$AH$2, "Bar", "", "Close","D",AH18,,,,,"T") -> 38.05 | AK18: -0.03325 | AL18: 15.3 | AS18: -11 | AT18: =RTD("cqg.rtd",,"StudyData",$AS$2, "Bar", "", "Close","D",AS18,,,,,"T") -> 102.05 | AV18: -0.03325 | AW18: 15.3 | BD18: -11 | BE18: =RTD("cqg.rtd",,"StudyData",$BD$2, "Bar", "", "Close","D",BD18,,,,,"T") -> 136.92 | BG18: -0.03325 | BH18: 15.3 | BO18: -11 | BP18: =RTD("cqg.rtd",,"StudyData",$BO$2, "Bar", "", "Close","D",BO18,,,,,"T") -> 161.47 | BR18: -0.03325 | BS18: 15.3 | BZ18: -11 | CA18: =RTD("cqg.rtd",,"StudyData",$BZ$2, "Bar", "", "Close","D",BZ18,,,,,"T") -> 89.1 | CC18: -0.03325 | CD18: 15.3 | CK18: -11 | CL18: =RTD("cqg.rtd",,"StudyData",$CK$2, "Bar", "", "Close","D",CK18,,,,,"T") -> 456.8 | CN18: -0.03325 | CO18: 15.3 | CV18: -11 | CW18: =RTD("cqg.rtd",,"StudyData",$CV$2, "Bar", "", "Close","D",CV18,,,,,"T") -> 77.16 | CY18: -0.03325 | CZ18: 15.3 | DG18: -11 | DH18: =RTD("cqg.rtd",,"StudyData",$DG$2, "Bar", "", "Close","D",DG18,,,,,"T") -> 189.39 | DJ18: -0.03325 | DK18: 15.3 | DR18: -11 | DS18: =RTD("cqg.rtd",,"StudyData",$DR$2, "Bar", "", "Close","D",DR18,,,,,"T") -> 71.2 | DU18: -0.03325 | DV18: 15.3
C19: =MAX(C8:C17) -> 0.01521933751 | D19: -0.033 | E19: 16.2 | N19: =MAX(N8:N17) -> 0.019896538 | O19: -0.033 | P19: 16.2 | Y19: =MAX(Y8:Y17) -> 0.02097039474 | Z19: -0.033 | AA19: 16.2 | AJ19: =MAX(AJ8:AJ17) -> 0.01374292643 | AK19: -0.033 | AL19: 16.2 | AU19: =MAX(AU8:AU17) -> 0.01817451551 | AV19: -0.033 | AW19: 16.2 | BF19: =MAX(BF8:BF17) -> 0.0192390524 | BG19: -0.033 | BH19: 16.2 | BQ19: =MAX(BQ8:BQ17) -> 0.01876019576 | BR19: -0.033 | BS19: 16.2 | CB19: =MAX(CB8:CB17) -> 0.01476266182 | CC19: -0.033 | CD19: 16.2 | CM19: =MAX(CM8:CM17) -> 0.01614265817 | CN19: -0.033 | CO19: 16.2 | CX19: =MAX(CX8:CX17) -> 0.02751937984 | CY19: -0.033 | CZ19: 16.2 | DI19: =MAX(DI8:DI17) -> 0.02900413546 | DJ19: -0.033 | DK19: 16.2 | DT19: =MAX(DT8:DT17) -> 0.01992152128 | DU19: -0.033 | DV19: 16.2
C20: =MIN(C8:C17) -> -0.008244545916 | D20: -0.03275 | E20: 17.1 | N20: =MIN(N8:N17) -> -0.01364345114 | O20: -0.03275 | P20: 17.1 | Y20: =MIN(Y8:Y17) -> -0.01369035635 | Z20: -0.03275 | AA20: 17.1 | AJ20: =MIN(AJ8:AJ17) -> -0.01125703565 | AK20: -0.03275 | AL20: 17.1 | AU20: =MIN(AU8:AU17) -> -0.01420872122 | AV20: -0.03275 | AW20: 17.1 | BF20: =MIN(BF8:BF17) -> -0.01988377792 | BG20: -0.03275 | BH20: 17.1 | BQ20: =MIN(BQ8:BQ17) -> -0.02519519717 | BR20: -0.03275 | BS20: 17.1 | CB20: =MIN(CB8:CB17) -> -0.01153976694 | CC20: -0.03275 | CD20: 17.1 | CM20: =MIN(CM8:CM17) -> -0.01709229841 | CN20: -0.03275 | CO20: 17.1 | CX20: =MIN(CX8:CX17) -> -0.03005155287 | CY20: -0.03275 | CZ20: 17.1 | DI20: =MIN(DI8:DI17) -> -0.02552041092 | DJ20: -0.03275 | DK20: 17.1 | DT20: =MIN(DT8:DT17) -> -0.01863707498 | DU20: -0.03275 | DV20: 17.1
A21: ="10-Day Maximum Closing NC: "&TEXT(C19,"0.00%") -> 10-Day Maximum Closing NC: 1.52% | D21: -0.0325 | E21: 18 | L21: ="10-Day Maximum Closing NC: "&TEXT(N19,"0.00%") -> 10-Day Maximum Closing NC: 1.99% | O21: -0.0325 | P21: 18 | W21: ="10-Day Maximum Closing NC: "&TEXT(Y19,"0.00%") -> 10-Day Maximum Closing NC: 2.10% | Z21: -0.0325 | AA21: 18 | AH21: ="10-Day Maximum Closing NC: "&TEXT(AJ19,"0.00%") -> 10-Day Maximum Closing NC: 1.37% | AK21: -0.0325 | AL21: 18 | AS21: ="10-Day Maximum Closing NC: "&TEXT(AU19,"0.00%") -> 10-Day Maximum Closing NC: 1.82% | AV21: -0.0325 | AW21: 18 | BD21: ="10-Day Maximum Closing NC: "&TEXT(BF19,"0.00%") -> 10-Day Maximum Closing NC: 1.92% | BG21: -0.0325 | BH21: 18 | BO21: ="10-Day Maximum Closing NC: "&TEXT(BQ19,"0.00%") -> 10-Day Maximum Closing NC: 1.88% | BR21: -0.0325 | BS21: 18 | BZ21: ="10-Day Maximum Closing NC: "&TEXT(CB19,"0.00%") -> 10-Day Maximum Closing NC: 1.48% | CC21: -0.0325 | CD21: 18 | CK21: ="10-Day Maximum Closing NC: "&TEXT(CM19,"0.00%") -> 10-Day Maximum Closing NC: 1.61% | CN21: -0.0325 | CO21: 18 | CV21: ="10-Day Maximum Closing NC: "&TEXT(CX19,"0.00%") -> 10-Day Maximum Closing NC: 2.75% | CY21: -0.0325 | CZ21: 18 | DG21: ="10-Day Closing Maximum NC: "&TEXT(DI19,"0.00%") -> 10-Day Closing Maximum NC: 2.90% | DJ21: -0.0325 | DK21: 18 | DR21: ="10-Day Maximum Closing NC: "&TEXT(DT19,"0.00%") -> 10-Day Maximum Closing NC: 1.99% | DU21: -0.0325 | DV21: 18
A22: ="10-Day Minimum Closing NC: "&TEXT(C20,"0.00%") -> 10-Day Minimum Closing NC: -0.82% | D22: -0.03225 | E22: 18.9 | L22: ="10-Day Minimum Closing NC: "&TEXT(N20,"0.00%") -> 10-Day Minimum Closing NC: -1.36% | O22: -0.03225 | P22: 18.9 | W22: ="10-Day Minimum Closing NC: "&TEXT(Y20,"0.00%") -> 10-Day Minimum Closing NC: -1.37% | Z22: -0.03225 | AA22: 18.9 | AH22: ="10-Day Minimum Closing NC: "&TEXT(AJ20,"0.00%") -> 10-Day Minimum Closing NC: -1.13% | AK22: -0.03225 | AL22: 18.9 | AS22: ="10-Day Minimum Closing NC: "&TEXT(AU20,"0.00%") -> 10-Day Minimum Closing NC: -1.42% | AV22: -0.03225 | AW22: 18.9 | BD22: ="10-Day Minimum Closing NC: "&TEXT(BF20,"0.00%") -> 10-Day Minimum Closing NC: -1.99% | BG22: -0.03225 | BH22: 18.9 | BO22: ="10-Day Minimum Closing NC: "&TEXT(BQ20,"0.00%") -> 10-Day Minimum Closing NC: -2.52% | BR22: -0.03225 | BS22: 18.9 | BZ22: ="10-Day Minimum Closing NC: "&TEXT(CB20,"0.00%") -> 10-Day Minimum Closing NC: -1.15% | CC22: -0.03225 | CD22: 18.9 | CK22: ="10-Day Minimum Closing NC: "&TEXT(CM20,"0.00%") -> 10-Day Minimum Closing NC: -1.71% | CN22: -0.03225 | CO22: 18.9 | CV22: ="10-Day Minimum Closing NC: "&TEXT(CX20,"0.00%") -> 10-Day Minimum Closing NC: -3.01% | CY22: -0.03225 | CZ22: 18.9 | DG22: ="10-Day Minimum Closing NC: "&TEXT(DI20,"0.00%") -> 10-Day Minimum Closing NC: -2.55% | DJ22: -0.03225 | DK22: 18.9 | DR22: ="10-Day Minimum Closing NC: "&TEXT(DT20,"0.00%") -> 10-Day Minimum Closing NC: -1.86% | DU22: -0.03225 | DV22: 18.9
D23: -0.032 | E23: 19.8 | O23: -0.032 | P23: 19.8 | Z23: -0.032 | AA23: 19.8 | AK23: -0.032 | AL23: 19.8 | AV23: -0.032 | AW23: 19.8 | BG23: -0.032 | BH23: 19.8 | BR23: -0.032 | BS23: 19.8 | CC23: -0.032 | CD23: 19.8 | CN23: -0.032 | CO23: 19.8 | CY23: -0.032 | CZ23: 19.8 | DJ23: -0.032 | DK23: 19.8 | DU23: -0.032 | DV23: 19.8
A24: =IFERROR(RTD("cqg.rtd",,"StudyData",A2, "PCB","BaseType=Index,Price=1000,Index=1,Date=12/30/2016", "High", "D",,"all",,,,"T")/100,"") -> 0.01297556059 | B24: =IFERROR(RTD("cqg.rtd",,"StudyData",A2, "PCB","BaseType=Index,Price=1000,Index=1,Date=12/30/2016", "Low", "D",,"all",,,,"T")/100,"") -> 0.004913076342 | D24: -0.03175 | E24: 20.7 | L24: =IFERROR(RTD("cqg.rtd",,"StudyData",L2, "PCB","BaseType=Index,Price=1000,Index=1,Date=12/30/2016", "High", "D",,"all",,,,"T")/100,"") -> 0.01115924905 | M24: =IFERROR(RTD("cqg.rtd",,"StudyData",L2, "PCB","BaseType=Index,Price=1000,Index=1,Date=12/30/2016", "Low", "D",,"all",,,,"T")/100,"") -> 0.00630169358 | O24: -0.03175 | P24: 20.7 | W24: =IFERROR(RTD("cqg.rtd",,"StudyData",W2, "PCB","BaseType=Index,Price=1000,Index=1,Date=12/30/2016", "High", "D",,"all",,,,"T")/100,"") -> 0.009061619009 | X24: =IFERROR(RTD("cqg.rtd",,"StudyData",W2, "PCB","BaseType=Index,Price=1000,Index=1,Date=12/30/2016", "Low", "D",,"all",,,,"T")/100,"") -> 0.001006846557 | Z24: -0.03175 | AA24: 20.7 | AH24: =IFERROR(RTD("cqg.rtd",,"StudyData",AH2, "PCB","BaseType=Index,Price=1000,Index=1,Date=12/30/2016", "High", "D",,"all",,,,"T")/100,"") -> 0.01063264221 | AI24: =IFERROR(RTD("cqg.rtd",,"StudyData",AH2, "PCB","BaseType=Index,Price=1000,Index=1,Date=12/30/2016", "Low", "D",,"all",,,,"T")/100,"") -> 0.005050505051 | AK24: -0.03175 | AL24: 20.7 | AS24: =IFERROR(RTD("cqg.rtd",,"StudyData",AS2, "PCB","BaseType=Index,Price=1000,Index=1,Date=12/30/2016", "High", "D",,"all",,,,"T")/100,"") -> 0.0107495069 | AT24: =IFERROR(RTD("cqg.rtd",,"StudyData",AS2, "PCB","BaseType=Index,Price=1000,Index=1,Date=12/30/2016", "Low", "D",,"all",,,,"T")/100,"") -> 0.004635108481 | AV24: -0.03175 | AW24: 20.7 | BD24: =IFERROR(RTD("cqg.rtd",,"StudyData",BD2, "PCB","BaseType=Index,Price=1000,Index=1,Date=12/30/2016", "High", "D",,"all",,,,"T")/100,"") -> 0.008019072388 | BE24: =IFERROR(RTD("cqg.rtd",,"StudyData",BD2, "PCB","BaseType=Index,Price=1000,Index=1,Date=12/30/2016", "Low", "D",,"all",,,,"T")/100,"") -> 0.001589365699 | BG24: -0.03175 | BH24: 20.7 | BO24: =IFERROR(RTD("cqg.rtd",,"StudyData",BO2, "PCB","BaseType=Index,Price=1000,Index=1,Date=12/30/2016", "High", "D",,"all",,,,"T")/100,"") -> 0.0123432079 | BP24: =IFERROR(RTD("cqg.rtd",,"StudyData",BO2, "PCB","BaseType=Index,Price=1000,Index=1,Date=12/30/2016", "Low", "D",,"all",,,,"T")/100,"") -> 0.001267680811 | BR24: -0.03175 | BS24: 20.7 | BZ24: =IFERROR(RTD("cqg.rtd",,"StudyData",BZ2, "PCB","BaseType=Index,Price=1000,Index=1,Date=12/30/2016", "High", "D",,"all",,,,"T")/100,"") -> 0.007557234941 | CA24: =IFERROR(RTD("cqg.rtd",,"StudyData",BZ2, "PCB","BaseType=Index,Price=1000,Index=1,Date=12/30/2016", "Low", "D",,"all",,,,"T")/100,"") -> -0.0003334074239 | CC24: -0.03175 | CD24: 20.7 | CK24: =IFERROR(RTD("cqg.rtd",,"StudyData",CK2, "PCB","BaseType=Index,Price=1000,Index=1,Date=12/30/2016", "High", "D",,"all",,,,"T")/100,"") -> 0.005684882258 | CL24: =IFERROR(RTD("cqg.rtd",,"StudyData",CK2, "PCB","BaseType=Index,Price=1000,Index=1,Date=12/30/2016", "Low", "D",,"all",,,,"T")/100,"") -> -0.001415603092 | CN24: -0.03175 | CO24: 20.7 | CV24: =IFERROR(RTD("cqg.rtd",,"StudyData",CV2, "PCB","BaseType=Index,Price=1000,Index=1,Date=12/30/2016", "High", "D",,"all",,,,"T")/100,"") -> 0.008461921354 | CW24: =IFERROR(RTD("cqg.rtd",,"StudyData",CV2, "PCB","BaseType=Index,Price=1000,Index=1,Date=12/30/2016", "Low", "D",,"all",,,,"T")/100,"") -> -0.007093081135 | CY24: -0.03175 | CZ24: 20.7 | DG24: =IFERROR(RTD("cqg.rtd",,"StudyData",DG2, "PCB","BaseType=Index,Price=1000,Index=1,Date=12/30/2016", "High", "D",,"all",,,,"T")/100,"") -> 0.004616303698 | DH24: =IFERROR(RTD("cqg.rtd",,"StudyData",DG2, "PCB","BaseType=Index,Price=1000,Index=1,Date=12/30/2016", "Low", "D",,"all",,,,"T")/100,"") -> -0.008363656113 | DJ24: -0.03175 | DK24: 20.7 | DR24: =IFERROR(RTD("cqg.rtd",,"StudyData",DR2, "PCB","BaseType=Index,Price=1000,Index=1,Date=12/30/2016", "High", "D",,"all",,,,"T")/100,"") -> -0.01775673276 | DS24: =IFERROR(RTD("cqg.rtd",,"StudyData",DR2, "PCB","BaseType=Index,Price=1000,Index=1,Date=12/30/2016", "Low", "D",,"all",,,,"T")/100,"") -> -0.0350695472 | DU24: -0.03175 | DV24: 20.7
D25: -0.0315 | E25: 21.6 | O25: -0.0315 | P25: 21.6 | Z25: -0.0315 | AA25: 21.6 | AK25: -0.0315 | AL25: 21.6 | AV25: -0.0315 | AW25: 21.6 | BG25: -0.0315 | BH25: 21.6 | BR25: -0.0315 | BS25: 21.6 | CC25: -0.0315 | CD25: 21.6 | CN25: -0.0315 | CO25: 21.6 | CY25: -0.0315 | CZ25: 21.6 | DJ25: -0.0315 | DK25: 21.6 | DU25: -0.0315 | DV25: 21.6
A26: ="High: "&TEXT(A24,"#0.00%") -> High: 1.30% | D26: -0.03125 | E26: 22.5 | L26: ="High: "&TEXT(L24,"#0.00%") -> High: 1.12% | O26: -0.03125 | P26: 22.5 | W26: ="High: "&TEXT(W24,"#0.00%") -> High: 0.91% | Z26: -0.03125 | AA26: 22.5 | AH26: ="High: "&TEXT(AH24,"#0.00%") -> High: 1.06% | AK26: -0.03125 | AL26: 22.5 | AS26: ="High: "&TEXT(AS24,"#0.00%") -> High: 1.07% | AV26: -0.03125 | AW26: 22.5 | BD26: ="High: "&TEXT(BD24,"#0.00%") -> High: 0.80% | BG26: -0.03125 | BH26: 22.5 | BO26: ="High: "&TEXT(BO24,"#0.00%") -> High: 1.23% | BR26: -0.03125 | BS26: 22.5 | BZ26: ="High: "&TEXT(BZ24,"#0.00%") -> High: 0.76% | CC26: -0.03125 | CD26: 22.5 | CK26: ="High: "&TEXT(CK24,"#0.00%") -> High: 0.57% | CN26: -0.03125 | CO26: 22.5 | CV26: ="High: "&TEXT(CV24,"#0.00%") -> High: 0.85% | CY26: -0.03125 | CZ26: 22.5 | DG26: ="High: "&TEXT(DG24,"#0.00%") -> High: 0.46% | DJ26: -0.03125 | DK26: 22.5 | DR26: ="High: "&TEXT(DR24,"#0.00%") -> High: -1.78% | DU26: -0.03125 | DV26: 22.5
A27: ="Low: "&TEXT(B24,"#0.00%") -> Low: 0.49% | D27: -0.031 | E27: 23.4 | L27: ="Low: "&TEXT(M24,"#0.00%") -> Low: 0.63% | O27: -0.031 | P27: 23.4 | W27: ="Low: "&TEXT(X24,"#0.00%") -> Low: 0.10% | Z27: -0.031 | AA27: 23.4 | AH27: ="Low: "&TEXT(AI24,"#0.00%") -> Low: 0.51% | AK27: -0.031 | AL27: 23.4 | AS27: ="Low: "&TEXT(AT24,"#0.00%") -> Low: 0.46% | AV27: -0.031 | AW27: 23.4 | BD27: ="Low: "&TEXT(BE24,"#0.00%") -> Low: 0.16% | BG27: -0.031 | BH27: 23.4 | BO27: ="Low: "&TEXT(BP24,"#0.00%") -> Low: 0.13% | BR27: -0.031 | BS27: 23.4 | BZ27: ="Low: "&TEXT(CA24,"#0.00%") -> Low: -0.03% | CC27: -0.031 | CD27: 23.4 | CK27: ="Low: "&TEXT(CL24,"#0.00%") -> Low: -0.14% | CN27: -0.031 | CO27: 23.4 | CV27: ="Low: "&TEXT(CW24,"#0.00%") -> Low: -0.71% | CY27: -0.031 | CZ27: 23.4 | DG27: ="Low: "&TEXT(DH24,"#0.00%") -> Low: -0.84% | DJ27: -0.031 | DK27: 23.4 | DR27: ="Low: "&TEXT(DS24,"#0.00%") -> Low: -3.51% | DU27: -0.031 | DV27: 23.4
A28: ="Todays' "&A26&" & "&A27 -> Todays' High: 1.30% & Low: 0.49% | D28: -0.03075 | E28: 24.3 | L28: ="Todays' "&L26&" & "&L27 -> Todays' High: 1.12% & Low: 0.63% | O28: -0.03075 | P28: 24.3 | W28: ="Todays' "&W26&" & "&W27 -> Todays' High: 0.91% & Low: 0.10% | Z28: -0.03075 | AA28: 24.3 | AH28: ="Todays' "&AH26&" & "&AH27 -> Todays' High: 1.06% & Low: 0.51% | AK28: -0.03075 | AL28: 24.3 | AS28: ="Todays' "&AS26&" & "&AS27 -> Todays' High: 1.07% & Low: 0.46% | AV28: -0.03075 | AW28: 24.3 | BD28: ="Todays' "&BD26&" & "&BD27 -> Todays' High: 0.80% & Low: 0.16% | BG28: -0.03075 | BH28: 24.3 | BO28: ="Todays' "&BO26&" & "&BO27 -> Todays' High: 1.23% & Low: 0.13% | BR28: -0.03075 | BS28: 24.3 | BZ28: ="Todays' "&BZ26&" & "&BZ27 -> Todays' High: 0.76% & Low: -0.03% | CC28: -0.03075 | CD28: 24.3 | CK28: ="Todays' "&CK26&" & "&CK27 -> Todays' High: 0.57% & Low: -0.14% | CN28: -0.03075 | CO28: 24.3 | CV28: ="Todays' "&CV26&" & "&CV27 -> Todays' High: 0.85% & Low: -0.71% | CY28: -0.03075 | CZ28: 24.3 | DG28: ="Todays' "&DG26&" & "&DG27 -> Todays' High: 0.46% & Low: -0.84% | DJ28: -0.03075 | DK28: 24.3 | DR28: ="Todays' "&DR26&" & "&DR27 -> Todays' High: -1.78% & Low: -3.51% | DU28: -0.03075 | DV28: 24.3
D29: -0.0305 | E29: 25.2 | O29: -0.0305 | P29: 25.2 | Z29: -0.0305 | AA29: 25.2 | AK29: -0.0305 | AL29: 25.2 | AV29: -0.0305 | AW29: 25.2 | BG29: -0.0305 | BH29: 25.2 | BR29: -0.0305 | BS29: 25.2 | CC29: -0.0305 | CD29: 25.2 | CN29: -0.0305 | CO29: 25.2 | CY29: -0.0305 | CZ29: 25.2 | DJ29: -0.0305 | DK29: 25.2 | DU29: -0.0305 | DV29: 25.2
D30: -0.03025 | E30: 26.1 | O30: -0.03025 | P30: 26.1 | Z30: -0.03025 | AA30: 26.1 | AK30: -0.03025 | AL30: 26.1 | AV30: -0.03025 | AW30: 26.1 | BG30: -0.03025 | BH30: 26.1 | BR30: -0.03025 | BS30: 26.1 | CC30: -0.03025 | CD30: 26.1 | CN30: -0.03025 | CO30: 26.1 | CY30: -0.03025 | CZ30: 26.1 | DJ30: -0.03025 | DK30: 26.1 | DU30: -0.03025 | DV30: 26.1
D31: -0.03 | E31: 27 | O31: -0.03 | P31: 27 | Z31: -0.03 | AA31: 27 | AK31: -0.03 | AL31: 27 | AV31: -0.03 | AW31: 27 | BG31: -0.03 | BH31: 27 | BR31: -0.03 | BS31: 27 | CC31: -0.03 | CD31: 27 | CN31: -0.03 | CO31: 27 | CY31: -0.03 | CZ31: 27 | DJ31: -0.03 | DK31: 27 | DU31: -0.03 | DV31: 27
D32: -0.02975 | E32: 27.9 | O32: -0.02975 | P32: 27.9 | Z32: -0.02975 | AA32: 27.9 | AK32: -0.02975 | AL32: 27.9 | AV32: -0.02975 | AW32: 27.9 | BG32: -0.02975 | BH32: 27.9 | BR32: -0.02975 | BS32: 27.9 | CC32: -0.02975 | CD32: 27.9 | CN32: -0.02975 | CO32: 27.9 | CY32: -0.02975 | CZ32: 27.9 | DJ32: -0.02975 | DK32: 27.9 | DU32: -0.02975 | DV32: 27.9
D33: -0.0295 | E33: 28.8 | O33: -0.0295 | P33: 28.8 | Z33: -0.0295 | AA33: 28.8 | AK33: -0.0295 | AL33: 28.8 | AV33: -0.0295 | AW33: 28.8 | BG33: -0.0295 | BH33: 28.8 | BR33: -0.0295 | BS33: 28.8 | CC33: -0.0295 | CD33: 28.8 | CN33: -0.0295 | CO33: 28.8 | CY33: -0.0295 | CZ33: 28.8 | DJ33: -0.0295 | DK33: 28.8 | DU33: -0.0295 | DV33: 28.8
D34: -0.02925 | E34: 29.7 | O34: -0.02925 | P34: 29.7 | Z34: -0.02925 | AA34: 29.7 | AK34: -0.02925 | AL34: 29.7 | AV34: -0.02925 | AW34: 29.7 | BG34: -0.02925 | BH34: 29.7 | BR34: -0.02925 | BS34: 29.7 | CC34: -0.02925 | CD34: 29.7 | CN34: -0.02925 | CO34: 29.7 | CY34: -0.02925 | CZ34: 29.7 | DJ34: -0.02925 | DK34: 29.7 | DU34: -0.02925 | DV34: 29.7
D35: -0.029 | E35: 30.6 | O35: -0.029 | P35: 30.6 | Z35: -0.029 | AA35: 30.6 | AK35: -0.029 | AL35: 30.6 | AV35: -0.029 | AW35: 30.6 | BG35: -0.029 | BH35: 30.6 | BR35: -0.029 | BS35: 30.6 | CC35: -0.029 | CD35: 30.6 | CN35: -0.029 | CO35: 30.6 | CY35: -0.029 | CZ35: 30.6 | DJ35: -0.029 | DK35: 30.6 | DU35: -0.029 | DV35: 30.6
D36: -0.02875 | E36: 31.5 | O36: -0.02875 | P36: 31.5 | Z36: -0.02875 | AA36: 31.5 | AK36: -0.02875 | AL36: 31.5 | AV36: -0.02875 | AW36: 31.5 | BG36: -0.02875 | BH36: 31.5 | BR36: -0.02875 | BS36: 31.5 | CC36: -0.02875 | CD36: 31.5 | CN36: -0.02875 | CO36: 31.5 | CY36: -0.02875 | CZ36: 31.5 | DJ36: -0.02875 | DK36: 31.5 | DU36: -0.02875 | DV36: 31.5
D37: -0.0285 | E37: 32.4 | O37: -0.0285 | P37: 32.4 | Z37: -0.0285 | AA37: 32.4 | AK37: -0.0285 | AL37: 32.4 | AV37: -0.0285 | AW37: 32.4 | BG37: -0.0285 | BH37: 32.4 | BR37: -0.0285 | BS37: 32.4 | CC37: -0.0285 | CD37: 32.4 | CN37: -0.0285 | CO37: 32.4 | CY37: -0.0285 | CZ37: 32.4 | DJ37: -0.0285 | DK37: 32.4 | DU37: -0.0285 | DV37: 32.4
D38: -0.02825 | E38: 33.3 | O38: -0.02825 | P38: 33.3 | Z38: -0.02825 | AA38: 33.3 | AK38: -0.02825 | AL38: 33.3 | AV38: -0.02825 | AW38: 33.3 | BG38: -0.02825 | BH38: 33.3 | BR38: -0.02825 | BS38: 33.3 | CC38: -0.02825 | CD38: 33.3 | CN38: -0.02825 | CO38: 33.3 | CY38: -0.02825 | CZ38: 33.3 | DJ38: -0.02825 | DK38: 33.3 | DU38: -0.02825 | DV38: 33.3
D39: -0.028 | E39: 34.2 | O39: -0.028 | P39: 34.2 | Z39: -0.028 | AA39: 34.2 | AK39: -0.028 | AL39: 34.2 | AV39: -0.028 | AW39: 34.2 | BG39: -0.028 | BH39: 34.2 | BR39: -0.028 | BS39: 34.2 | CC39: -0.028 | CD39: 34.2 | CN39: -0.028 | CO39: 34.2 | CY39: -0.028 | CZ39: 34.2 | DJ39: -0.028 | DK39: 34.2 | DU39: -0.028 | DV39: 34.2
D40: -0.02775 | E40: 35.1 | O40: -0.02775 | P40: 35.1 | Z40: -0.02775 | AA40: 35.1 | AK40: -0.02775 | AL40: 35.1 | AV40: -0.02775 | AW40: 35.1 | BG40: -0.02775 | BH40: 35.1 | BR40: -0.02775 | BS40: 35.1 | CC40: -0.02775 | CD40: 35.1 | CN40: -0.02775 | CO40: 35.1 | CY40: -0.02775 | CZ40: 35.1 | DJ40: -0.02775 | DK40: 35.1 | DU40: -0.02775 | DV40: 35.1
D41: -0.0275 | E41: 36 | O41: -0.0275 | P41: 36 | Z41: -0.0275 | AA41: 36 | AK41: -0.0275 | AL41: 36 | AV41: -0.0275 | AW41: 36 | BG41: -0.0275 | BH41: 36 | BR41: -0.0275 | BS41: 36 | CC41: -0.0275 | CD41: 36 | CN41: -0.0275 | CO41: 36 | CY41: -0.0275 | CZ41: 36 | DJ41: -0.0275 | DK41: 36 | DU41: -0.0275 | DV41: 36
D42: -0.02725 | E42: 36.9 | O42: -0.02725 | P42: 36.9 | Z42: -0.02725 | AA42: 36.9 | AK42: -0.02725 | AL42: 36.9 | AV42: -0.02725 | AW42: 36.9 | BG42: -0.02725 | BH42: 36.9 | BR42: -0.02725 | BS42: 36.9 | CC42: -0.02725 | CD42: 36.9 | CN42: -0.02725 | CO42: 36.9 | CY42: -0.02725 | CZ42: 36.9 | DJ42: -0.02725 | DK42: 36.9 | DU42: -0.02725 | DV42: 36.9
D43: -0.027 | E43: 37.8 | O43: -0.027 | P43: 37.8 | Z43: -0.027 | AA43: 37.8 | AK43: -0.027 | AL43: 37.8 | AV43: -0.027 | AW43: 37.8 | BG43: -0.027 | BH43: 37.8 | BR43: -0.027 | BS43: 37.8 | CC43: -0.027 | CD43: 37.8 | CN43: -0.027 | CO43: 37.8 | CY43: -0.027 | CZ43: 37.8 | DJ43: -0.027 | DK43: 37.8 | DU43: -0.027 | DV43: 37.8
D44: -0.02675 | E44: 38.7 | O44: -0.02675 | P44: 38.7 | Z44: -0.02675 | AA44: 38.7 | AK44: -0.02675 | AL44: 38.7 | AV44: -0.02675 | AW44: 38.7 | BG44: -0.02675 | BH44: 38.7 | BR44: -0.02675 | BS44: 38.7 | CC44: -0.02675 | CD44: 38.7 | CN44: -0.02675 | CO44: 38.7 | CY44: -0.02675 | CZ44: 38.7 | DJ44: -0.02675 | DK44: 38.7 | DU44: -0.02675 | DV44: 38.7
D45: -0.0265 | E45: 39.6 | O45: -0.0265 | P45: 39.6 | Z45: -0.0265 | AA45: 39.6 | AK45: -0.0265 | AL45: 39.6 | AV45: -0.0265 | AW45: 39.6 | BG45: -0.0265 | BH45: 39.6 | BR45: -0.0265 | BS45: 39.6 | CC45: -0.0265 | CD45: 39.6 | CN45: -0.0265 | CO45: 39.6 | CY45: -0.0265 | CZ45: 39.6 | DJ45: -0.0265 | DK45: 39.6 | DU45: -0.0265 | DV45: 39.6
D46: -0.02625 | E46: 40.5 | O46: -0.02625 | P46: 40.5 | Z46: -0.02625 | AA46: 40.5 | AK46: -0.02625 | AL46: 40.5 | AV46: -0.02625 | AW46: 40.5 | BG46: -0.02625 | BH46: 40.5 | BR46: -0.02625 | BS46: 40.5 | CC46: -0.02625 | CD46: 40.5 | CN46: -0.02625 | CO46: 40.5 | CY46: -0.02625 | CZ46: 40.5 | DJ46: -0.02625 | DK46: 40.5 | DU46: -0.02625 | DV46: 40.5
D47: -0.026 | E47: 41.4 | O47: -0.026 | P47: 41.4 | Z47: -0.026 | AA47: 41.4 | AK47: -0.026 | AL47: 41.4 | AV47: -0.026 | AW47: 41.4 | BG47: -0.026 | BH47: 41.4 | BR47: -0.026 | BS47: 41.4 | CC47: -0.026 | CD47: 41.4 | CN47: -0.026 | CO47: 41.4 | CY47: -0.026 | CZ47: 41.4 | DJ47: -0.026 | DK47: 41.4 | DU47: -0.026 | DV47: 41.4
D48: -0.02575 | E48: 42.3 | O48: -0.02575 | P48: 42.3 | Z48: -0.02575 | AA48: 42.3 | AK48: -0.02575 | AL48: 42.3 | AV48: -0.02575 | AW48: 42.3 | BG48: -0.02575 | BH48: 42.3 | BR48: -0.02575 | BS48: 42.3 | CC48: -0.02575 | CD48: 42.3 | CN48: -0.02575 | CO48: 42.3 | CY48: -0.02575 | CZ48: 42.3 | DJ48: -0.02575 | DK48: 42.3 | DU48: -0.02575 | DV48: 42.3
D49: -0.0255 | E49: 43.2 | O49: -0.0255 | P49: 43.2 | Z49: -0.0255 | AA49: 43.2 | AK49: -0.0255 | AL49: 43.2 | AV49: -0.0255 | AW49: 43.2 | BG49: -0.0255 | BH49: 43.2 | BR49: -0.0255 | BS49: 43.2 | CC49: -0.0255 | CD49: 43.2 | CN49: -0.0255 | CO49: 43.2 | CY49: -0.0255 | CZ49: 43.2 | DJ49: -0.0255 | DK49: 43.2 | DU49: -0.0255 | DV49: 43.2
D50: -0.02525 | E50: 44.1 | O50: -0.02525 | P50: 44.1 | Z50: -0.02525 | AA50: 44.1 | AK50: -0.02525 | AL50: 44.1 | AV50: -0.02525 | AW50: 44.1 | BG50: -0.02525 | BH50: 44.1 | BR50: -0.02525 | BS50: 44.1 | CC50: -0.02525 | CD50: 44.1 | CN50: -0.02525 | CO50: 44.1 | CY50: -0.02525 | CZ50: 44.1 | DJ50: -0.02525 | DK50: 44.1 | DU50: -0.02525 | DV50: 44.1
D51: -0.025 | E51: 45 | O51: -0.025 | P51: 45 | Z51: -0.025 | AA51: 45 | AK51: -0.025 | AL51: 45 | AV51: -0.025 | AW51: 45 | BG51: -0.025 | BH51: 45 | BR51: -0.025 | BS51: 45 | CC51: -0.025 | CD51: 45 | CN51: -0.025 | CO51: 45 | CY51: -0.025 | CZ51: 45 | DJ51: -0.025 | DK51: 45 | DU51: -0.025 | DV51: 45
D52: -0.02475 | E52: 45.9 | O52: -0.02475 | P52: 45.9 | Z52: -0.02475 | AA52: 45.9 | AK52: -0.02475 | AL52: 45.9 | AV52: -0.02475 | AW52: 45.9 | BG52: -0.02475 | BH52: 45.9 | BR52: -0.02475 | BS52: 45.9 | CC52: -0.02475 | CD52: 45.9 | CN52: -0.02475 | CO52: 45.9 | CY52: -0.02475 | CZ52: 45.9 | DJ52: -0.02475 | DK52: 45.9 | DU52: -0.02475 | DV52: 45.9
D53: -0.0245 | E53: 46.8 | O53: -0.0245 | P53: 46.8 | Z53: -0.0245 | AA53: 46.8 | AK53: -0.0245 | AL53: 46.8 | AV53: -0.0245 | AW53: 46.8 | BG53: -0.0245 | BH53: 46.8 | BR53: -0.0245 | BS53: 46.8 | CC53: -0.0245 | CD53: 46.8 | CN53: -0.0245 | CO53: 46.8 | CY53: -0.0245 | CZ53: 46.8 | DJ53: -0.0245 | DK53: 46.8 | DU53: -0.0245 | DV53: 46.8
D54: -0.02425 | E54: 47.7 | O54: -0.02425 | P54: 47.7 | Z54: -0.02425 | AA54: 47.7 | AK54: -0.02425 | AL54: 47.7 | AV54: -0.02425 | AW54: 47.7 | BG54: -0.02425 | BH54: 47.7 | BR54: -0.02425 | BS54: 47.7 | CC54: -0.02425 | CD54: 47.7 | CN54: -0.02425 | CO54: 47.7 | CY54: -0.02425 | CZ54: 47.7 | DJ54: -0.02425 | DK54: 47.7 | DU54: -0.02425 | DV54: 47.7
D55: -0.024 | E55: 48.6 | O55: -0.024 | P55: 48.6 | Z55: -0.024 | AA55: 48.6 | AK55: -0.024 | AL55: 48.6 | AV55: -0.024 | AW55: 48.6 | BG55: -0.024 | BH55: 48.6 | BR55: -0.024 | BS55: 48.6 | CC55: -0.024 | CD55: 48.6 | CN55: -0.024 | CO55: 48.6 | CY55: -0.024 | CZ55: 48.6 | DJ55: -0.024 | DK55: 48.6 | DU55: -0.024 | DV55: 48.6
D56: -0.02375 | E56: 49.5 | O56: -0.02375 | P56: 49.5 | Z56: -0.02375 | AA56: 49.5 | AK56: -0.02375 | AL56: 49.5 | AV56: -0.02375 | AW56: 49.5 | BG56: -0.02375 | BH56: 49.5 | BR56: -0.02375 | BS56: 49.5 | CC56: -0.02375 | CD56: 49.5 | CN56: -0.02375 | CO56: 49.5 | CY56: -0.02375 | CZ56: 49.5 | DJ56: -0.02375 | DK56: 49.5 | DU56: -0.02375 | DV56: 49.5
D57: -0.0235 | E57: 50.4 | O57: -0.0235 | P57: 50.4 | Z57: -0.0235 | AA57: 50.4 | AK57: -0.0235 | AL57: 50.4 | AV57: -0.0235 | AW57: 50.4 | BG57: -0.0235 | BH57: 50.4 | BR57: -0.0235 | BS57: 50.4 | CC57: -0.0235 | CD57: 50.4 | CN57: -0.0235 | CO57: 50.4 | CY57: -0.0235 | CZ57: 50.4 | DJ57: -0.0235 | DK57: 50.4 | DU57: -0.0235 | DV57: 50.4
D58: -0.02325 | E58: 51.3 | O58: -0.02325 | P58: 51.3 | Z58: -0.02325 | AA58: 51.3 | AK58: -0.02325 | AL58: 51.3 | AV58: -0.02325 | AW58: 51.3 | BG58: -0.02325 | BH58: 51.3 | BR58: -0.02325 | BS58: 51.3 | CC58: -0.02325 | CD58: 51.3 | CN58: -0.02325 | CO58: 51.3 | CY58: -0.02325 | CZ58: 51.3 | DJ58: -0.02325 | DK58: 51.3 | DU58: -0.02325 | DV58: 51.3
D59: -0.023 | E59: 52.2 | O59: -0.023 | P59: 52.2 | Z59: -0.023 | AA59: 52.2 | AK59: -0.023 | AL59: 52.2 | AV59: -0.023 | AW59: 52.2 | BG59: -0.023 | BH59: 52.2 | BR59: -0.023 | BS59: 52.2 | CC59: -0.023 | CD59: 52.2 | CN59: -0.023 | CO59: 52.2 | CY59: -0.023 | CZ59: 52.2 | DJ59: -0.023 | DK59: 52.2 | DU59: -0.023 | DV59: 52.2
D60: -0.02275 | E60: 53.1 | O60: -0.02275 | P60: 53.1 | Z60: -0.02275 | AA60: 53.1 | AK60: -0.02275 | AL60: 53.1 | AV60: -0.02275 | AW60: 53.1 | BG60: -0.02275 | BH60: 53.1 | BR60: -0.02275 | BS60: 53.1 | CC60: -0.02275 | CD60: 53.1 | CN60: -0.02275 | CO60: 53.1 | CY60: -0.02275 | CZ60: 53.1 | DJ60: -0.02275 | DK60: 53.1 | DU60: -0.02275 | DV60: 53.1
D61: -0.0225 | E61: 54 | O61: -0.0225 | P61: 54 | Z61: -0.0225 | AA61: 54 | AK61: -0.0225 | AL61: 54 | AV61: -0.0225 | AW61: 54 | BG61: -0.0225 | BH61: 54 | BR61: -0.0225 | BS61: 54 | CC61: -0.0225 | CD61: 54 | CN61: -0.0225 | CO61: 54 | CY61: -0.0225 | CZ61: 54 | DJ61: -0.0225 | DK61: 54 | DU61: -0.0225 | DV61: 54
D62: -0.02225 | E62: 54.9 | O62: -0.02225 | P62: 54.9 | Z62: -0.02225 | AA62: 54.9 | AK62: -0.02225 | AL62: 54.9 | AV62: -0.02225 | AW62: 54.9 | BG62: -0.02225 | BH62: 54.9 | BR62: -0.02225 | BS62: 54.9 | CC62: -0.02225 | CD62: 54.9 | CN62: -0.02225 | CO62: 54.9 | CY62: -0.02225 | CZ62: 54.9 | DJ62: -0.02225 | DK62: 54.9 | DU62: -0.02225 | DV62: 54.9
D63: -0.022 | E63: 55.8 | O63: -0.022 | P63: 55.8 | Z63: -0.022 | AA63: 55.8 | AK63: -0.022 | AL63: 55.8 | AV63: -0.022 | AW63: 55.8 | BG63: -0.022 | BH63: 55.8 | BR63: -0.022 | BS63: 55.8 | CC63: -0.022 | CD63: 55.8 | CN63: -0.022 | CO63: 55.8 | CY63: -0.022 | CZ63: 55.8 | DJ63: -0.022 | DK63: 55.8 | DU63: -0.022 | DV63: 55.8
D64: -0.02175 | E64: 56.7 | O64: -0.02175 | P64: 56.7 | Z64: -0.02175 | AA64: 56.7 | AK64: -0.02175 | AL64: 56.7 | AV64: -0.02175 | AW64: 56.7 | BG64: -0.02175 | BH64: 56.7 | BR64: -0.02175 | BS64: 56.7 | CC64: -0.02175 | CD64: 56.7 | CN64: -0.02175 | CO64: 56.7 | CY64: -0.02175 | CZ64: 56.7 | DJ64: -0.02175 | DK64: 56.7 | DU64: -0.02175 | DV64: 56.7
D65: -0.0215 | E65: 57.6 | O65: -0.0215 | P65: 57.6 | Z65: -0.0215 | AA65: 57.6 | AK65: -0.0215 | AL65: 57.6 | AV65: -0.0215 | AW65: 57.6 | BG65: -0.0215 | BH65: 57.6 | BR65: -0.0215 | BS65: 57.6 | CC65: -0.0215 | CD65: 57.6 | CN65: -0.0215 | CO65: 57.6 | CY65: -0.0215 | CZ65: 57.6 | DJ65: -0.0215 | DK65: 57.6 | DU65: -0.0215 | DV65: 57.6
D66: -0.02125 | E66: 58.5 | O66: -0.02125 | P66: 58.5 | Z66: -0.02125 | AA66: 58.5 | AK66: -0.02125 | AL66: 58.5 | AV66: -0.02125 | AW66: 58.5 | BG66: -0.02125 | BH66: 58.5 | BR66: -0.02125 | BS66: 58.5 | CC66: -0.02125 | CD66: 58.5 | CN66: -0.02125 | CO66: 58.5 | CY66: -0.02125 | CZ66: 58.5 | DJ66: -0.02125 | DK66: 58.5 | DU66: -0.02125 | DV66: 58.5
D67: -0.021 | E67: 59.4 | O67: -0.021 | P67: 59.4 | Z67: -0.021 | AA67: 59.4 | AK67: -0.021 | AL67: 59.4 | AV67: -0.021 | AW67: 59.4 | BG67: -0.021 | BH67: 59.4 | BR67: -0.021 | BS67: 59.4 | CC67: -0.021 | CD67: 59.4 | CN67: -0.021 | CO67: 59.4 | CY67: -0.021 | CZ67: 59.4 | DJ67: -0.021 | DK67: 59.4 | DU67: -0.021 | DV67: 59.4
D68: -0.02075 | E68: 60.3 | O68: -0.02075 | P68: 60.3 | Z68: -0.02075 | AA68: 60.3 | AK68: -0.02075 | AL68: 60.3 | AV68: -0.02075 | AW68: 60.3 | BG68: -0.02075 | BH68: 60.3 | BR68: -0.02075 | BS68: 60.3 | CC68: -0.02075 | CD68: 60.3 | CN68: -0.02075 | CO68: 60.3 | CY68: -0.02075 | CZ68: 60.3 | DJ68: -0.02075 | DK68: 60.3 | DU68: -0.02075 | DV68: 60.3
D69: -0.0205 | E69: 61.2 | O69: -0.0205 | P69: 61.2 | Z69: -0.0205 | AA69: 61.2 | AK69: -0.0205 | AL69: 61.2 | AV69: -0.0205 | AW69: 61.2 | BG69: -0.0205 | BH69: 61.2 | BR69: -0.0205 | BS69: 61.2 | CC69: -0.0205 | CD69: 61.2 | CN69: -0.0205 | CO69: 61.2 | CY69: -0.0205 | CZ69: 61.2 | DJ69: -0.0205 | DK69: 61.2 | DU69: -0.0205 | DV69: 61.2
D70: -0.02025 | E70: 62.1 | O70: -0.02025 | P70: 62.1 | Z70: -0.02025 | AA70: 62.1 | AK70: -0.02025 | AL70: 62.1 | AV70: -0.02025 | AW70: 62.1 | BG70: -0.02025 | BH70: 62.1 | BR70: -0.02025 | BS70: 62.1 | CC70: -0.02025 | CD70: 62.1 | CN70: -0.02025 | CO70: 62.1 | CY70: -0.02025 | CZ70: 62.1 | DJ70: -0.02025 | DK70: 62.1 | DU70: -0.02025 | DV70: 62.1
D71: -0.02 | E71: 63 | O71: -0.02 | P71: 63 | Z71: -0.02 | AA71: 63 | AK71: -0.02 | AL71: 63 | AV71: -0.02 | AW71: 63 | BG71: -0.02 | BH71: 63 | BR71: -0.02 | BS71: 63 | CC71: -0.02 | CD71: 63 | CN71: -0.02 | CO71: 63 | CY71: -0.02 | CZ71: 63 | DJ71: -0.02 | DK71: 63 | DU71: -0.02 | DV71: 63
D72: -0.01975 | E72: 63.9 | O72: -0.01975 | P72: 63.9 | Z72: -0.01975 | AA72: 63.9 | AK72: -0.01975 | AL72: 63.9 | AV72: -0.01975 | AW72: 63.9 | BG72: -0.01975 | BH72: 63.9 | BR72: -0.01975 | BS72: 63.9 | CC72: -0.01975 | CD72: 63.9 | CN72: -0.01975 | CO72: 63.9 | CY72: -0.01975 | CZ72: 63.9 | DJ72: -0.01975 | DK72: 63.9 | DU72: -0.01975 | DV72: 63.9
D73: -0.0195 | E73: 64.8 | O73: -0.0195 | P73: 64.8 | Z73: -0.0195 | AA73: 64.8 | AK73: -0.0195 | AL73: 64.8 | AV73: -0.0195 | AW73: 64.8 | BG73: -0.0195 | BH73: 64.8 | BR73: -0.0195 | BS73: 64.8 | CC73: -0.0195 | CD73: 64.8 | CN73: -0.0195 | CO73: 64.8 | CY73: -0.0195 | CZ73: 64.8 | DJ73: -0.0195 | DK73: 64.8 | DU73: -0.0195 | DV73: 64.8
D74: -0.01925 | E74: 65.7 | O74: -0.01925 | P74: 65.7 | Z74: -0.01925 | AA74: 65.7 | AK74: -0.01925 | AL74: 65.7 | AV74: -0.01925 | AW74: 65.7 | BG74: -0.01925 | BH74: 65.7 | BR74: -0.01925 | BS74: 65.7 | CC74: -0.01925 | CD74: 65.7 | CN74: -0.01925 | CO74: 65.7 | CY74: -0.01925 | CZ74: 65.7 | DJ74: -0.01925 | DK74: 65.7 | DU74: -0.01925 | DV74: 65.7
D75: -0.019 | E75: 66.6 | O75: -0.019 | P75: 66.6 | Z75: -0.019 | AA75: 66.6 | AK75: -0.019 | AL75: 66.6 | AV75: -0.019 | AW75: 66.6 | BG75: -0.019 | BH75: 66.6 | BR75: -0.019 | BS75: 66.6 | CC75: -0.019 | CD75: 66.6 | CN75: -0.019 | CO75: 66.6 | CY75: -0.019 | CZ75: 66.6 | DJ75: -0.019 | DK75: 66.6 | DU75: -0.019 | DV75: 66.6
D76: -0.01875 | E76: 67.5 | O76: -0.01875 | P76: 67.5 | Z76: -0.01875 | AA76: 67.5 | AK76: -0.01875 | AL76: 67.5 | AV76: -0.01875 | AW76: 67.5 | BG76: -0.01875 | BH76: 67.5 | BR76: -0.01875 | BS76: 67.5 | CC76: -0.01875 | CD76: 67.5 | CN76: -0.01875 | CO76: 67.5 | CY76: -0.01875 | CZ76: 67.5 | DJ76: -0.01875 | DK76: 67.5 | DU76: -0.01875 | DV76: 67.5
D77: -0.0185 | E77: 68.4 | O77: -0.0185 | P77: 68.4 | Z77: -0.0185 | AA77: 68.4 | AK77: -0.0185 | AL77: 68.4 | AV77: -0.0185 | AW77: 68.4 | BG77: -0.0185 | BH77: 68.4 | BR77: -0.0185 | BS77: 68.4 | CC77: -0.0185 | CD77: 68.4 | CN77: -0.0185 | CO77: 68.4 | CY77: -0.0185 | CZ77: 68.4 | DJ77: -0.0185 | DK77: 68.4 | DU77: -0.0185 | DV77: 68.4
D78: -0.01825 | E78: 69.3 | O78: -0.01825 | P78: 69.3 | Z78: -0.01825 | AA78: 69.3 | AK78: -0.01825 | AL78: 69.3 | AV78: -0.01825 | AW78: 69.3 | BG78: -0.01825 | BH78: 69.3 | BR78: -0.01825 | BS78: 69.3 | CC78: -0.01825 | CD78: 69.3 | CN78: -0.01825 | CO78: 69.3 | CY78: -0.01825 | CZ78: 69.3 | DJ78: -0.01825 | DK78: 69.3 | DU78: -0.01825 | DV78: 69.3
D79: -0.018 | E79: 70.2 | I79: =81/5 -> 16.2 | O79: -0.018 | P79: 70.2 | T79: =81/5 -> 16.2 | Z79: -0.018 | AA79: 70.2 | AE79: =81/5 -> 16.2 | AK79: -0.018 | AL79: 70.2 | AP79: =81/5 -> 16.2 | AV79: -0.018 | AW79: 70.2 | BA79: =81/5 -> 16.2 | BG79: -0.018 | BH79: 70.2 | BL79: =81/5 -> 16.2 | BR79: -0.018 | BS79: 70.2 | BW79: =81/5 -> 16.2 | CC79: -0.018 | CD79: 70.2 | CH79: =81/5 -> 16.2 | CN79: -0.018 | CO79: 70.2 | CS79: =81/5 -> 16.2 | CY79: -0.018 | CZ79: 70.2 | DD79: =81/5 -> 16.2 | DJ79: -0.018 | DK79: 70.2 | DO79: =81/5 -> 16.2 | DU79: -0.018 | DV79: 70.2 | DZ79: =81/5 -> 16.2
D80: -0.01775 | E80: 71.1 | O80: -0.01775 | P80: 71.1 | Z80: -0.01775 | AA80: 71.1 | AK80: -0.01775 | AL80: 71.1 | AV80: -0.01775 | AW80: 71.1 | BG80: -0.01775 | BH80: 71.1 | BR80: -0.01775 | BS80: 71.1 | CC80: -0.01775 | CD80: 71.1 | CN80: -0.01775 | CO80: 71.1 | CY80: -0.01775 | CZ80: 71.1 | DJ80: -0.01775 | DK80: 71.1 | DU80: -0.01775 | DV80: 71.1
D81: -0.0175 | E81: 72 | O81: -0.0175 | P81: 72 | Z81: -0.0175 | AA81: 72 | AK81: -0.0175 | AL81: 72 | AV81: -0.0175 | AW81: 72 | BG81: -0.0175 | BH81: 72 | BR81: -0.0175 | BS81: 72 | CC81: -0.0175 | CD81: 72 | CN81: -0.0175 | CO81: 72 | CY81: -0.0175 | CZ81: 72 | DJ81: -0.0175 | DK81: 72 | DU81: -0.0175 | DV81: 72
D82: -0.01725 | E82: 72.9 | O82: -0.01725 | P82: 72.9 | Z82: -0.01725 | AA82: 72.9 | AK82: -0.01725 | AL82: 72.9 | AV82: -0.01725 | AW82: 72.9 | BG82: -0.01725 | BH82: 72.9 | BR82: -0.01725 | BS82: 72.9 | CC82: -0.01725 | CD82: 72.9 | CN82: -0.01725 | CO82: 72.9 | CY82: -0.01725 | CZ82: 72.9 | DJ82: -0.01725 | DK82: 72.9 | DU82: -0.01725 | DV82: 72.9
D83: -0.017 | E83: 73.8 | O83: -0.017 | P83: 73.8 | Z83: -0.017 | AA83: 73.8 | AK83: -0.017 | AL83: 73.8 | AV83: -0.017 | AW83: 73.8 | BG83: -0.017 | BH83: 73.8 | BR83: -0.017 | BS83: 73.8 | CC83: -0.017 | CD83: 73.8 | CN83: -0.017 | CO83: 73.8 | CY83: -0.017 | CZ83: 73.8 | DJ83: -0.017 | DK83: 73.8 | DU83: -0.017 | DV83: 73.8
D84: -0.01675 | E84: 74.7 | O84: -0.01675 | P84: 74.7 | Z84: -0.01675 | AA84: 74.7 | AK84: -0.01675 | AL84: 74.7 | AV84: -0.01675 | AW84: 74.7 | BG84: -0.01675 | BH84: 74.7 | BR84: -0.01675 | BS84: 74.7 | CC84: -0.01675 | CD84: 74.7 | CN84: -0.01675 | CO84: 74.7 | CY84: -0.01675 | CZ84: 74.7 | DJ84: -0.01675 | DK84: 74.7 | DU84: -0.01675 | DV84: 74.7
D85: -0.0165 | E85: 75.6 | O85: -0.0165 | P85: 75.6 | Z85: -0.0165 | AA85: 75.6 | AK85: -0.0165 | AL85: 75.6 | AV85: -0.0165 | AW85: 75.6 | BG85: -0.0165 | BH85: 75.6 | BR85: -0.0165 | BS85: 75.6 | CC85: -0.0165 | CD85: 75.6 | CN85: -0.0165 | CO85: 75.6 | CY85: -0.0165 | CZ85: 75.6 | DJ85: -0.0165 | DK85: 75.6 | DU85: -0.0165 | DV85: 75.6
D86: -0.01625 | E86: 76.5 | O86: -0.01625 | P86: 76.5 | Z86: -0.01625 | AA86: 76.5 | AK86: -0.01625 | AL86: 76.5 | AV86: -0.01625 | AW86: 76.5 | BG86: -0.01625 | BH86: 76.5 | BR86: -0.01625 | BS86: 76.5 | CC86: -0.01625 | CD86: 76.5 | CN86: -0.01625 | CO86: 76.5 | CY86: -0.01625 | CZ86: 76.5 | DJ86: -0.01625 | DK86: 76.5 | DU86: -0.01625 | DV86: 76.5
D87: -0.016 | E87: 77.4 | O87: -0.016 | P87: 77.4 | Z87: -0.016 | AA87: 77.4 | AK87: -0.016 | AL87: 77.4 | AV87: -0.016 | AW87: 77.4 | BG87: -0.016 | BH87: 77.4 | BR87: -0.016 | BS87: 77.4 | CC87: -0.016 | CD87: 77.4 | CN87: -0.016 | CO87: 77.4 | CY87: -0.016 | CZ87: 77.4 | DJ87: -0.016 | DK87: 77.4 | DU87: -0.016 | DV87: 77.4
D88: -0.01575 | E88: 78.3 | O88: -0.01575 | P88: 78.3 | Z88: -0.01575 | AA88: 78.3 | AK88: -0.01575 | AL88: 78.3 | AV88: -0.01575 | AW88: 78.3 | BG88: -0.01575 | BH88: 78.3 | BR88: -0.01575 | BS88: 78.3 | CC88: -0.01575 | CD88: 78.3 | CN88: -0.01575 | CO88: 78.3 | CY88: -0.01575 | CZ88: 78.3 | DJ88: -0.01575 | DK88: 78.3 | DU88: -0.01575 | DV88: 78.3
D89: -0.0155 | E89: 79.2 | O89: -0.0155 | P89: 79.2 | Z89: -0.0155 | AA89: 79.2 | AK89: -0.0155 | AL89: 79.2 | AV89: -0.0155 | AW89: 79.2 | BG89: -0.0155 | BH89: 79.2 | BR89: -0.0155 | BS89: 79.2 | CC89: -0.0155 | CD89: 79.2 | CN89: -0.0155 | CO89: 79.2 | CY89: -0.0155 | CZ89: 79.2 | DJ89: -0.0155 | DK89: 79.2 | DU89: -0.0155 | DV89: 79.2
D90: -0.01525 | E90: 80.1 | O90: -0.01525 | P90: 80.1 | Z90: -0.01525 | AA90: 80.1 | AK90: -0.01525 | AL90: 80.1 | AV90: -0.01525 | AW90: 80.1 | BG90: -0.01525 | BH90: 80.1 | BR90: -0.01525 | BS90: 80.1 | CC90: -0.01525 | CD90: 80.1 | CN90: -0.01525 | CO90: 80.1 | CY90: -0.01525 | CZ90: 80.1 | DJ90: -0.01525 | DK90: 80.1 | DU90: -0.01525 | DV90: 80.1
D91: -0.015 | E91: 81 | O91: -0.015 | P91: 81 | Z91: -0.015 | AA91: 81 | AK91: -0.015 | AL91: 81 | AV91: -0.015 | AW91: 81 | BG91: -0.015 | BH91: 81 | BR91: -0.015 | BS91: 81 | CC91: -0.015 | CD91: 81 | CN91: -0.015 | CO91: 81 | CY91: -0.015 | CZ91: 81 | DJ91: -0.015 | DK91: 81 | DU91: -0.015 | DV91: 81
D92: -0.01475 | E92: 81.9 | O92: -0.01475 | P92: 81.9 | Z92: -0.01475 | AA92: 81.9 | AK92: -0.01475 | AL92: 81.9 | AV92: -0.01475 | AW92: 81.9 | BG92: -0.01475 | BH92: 81.9 | BR92: -0.01475 | BS92: 81.9 | CC92: -0.01475 | CD92: 81.9 | CN92: -0.01475 | CO92: 81.9 | CY92: -0.01475 | CZ92: 81.9 | DJ92: -0.01475 | DK92: 81.9 | DU92: -0.01475 | DV92: 81.9
D93: -0.0145 | E93: 82.8 | O93: -0.0145 | P93: 82.8 | Z93: -0.0145 | AA93: 82.8 | AK93: -0.0145 | AL93: 82.8 | AV93: -0.0145 | AW93: 82.8 | BG93: -0.0145 | BH93: 82.8 | BR93: -0.0145 | BS93: 82.8 | CC93: -0.0145 | CD93: 82.8 | CN93: -0.0145 | CO93: 82.8 | CY93: -0.0145 | CZ93: 82.8 | DJ93: -0.0145 | DK93: 82.8 | DU93: -0.0145 | DV93: 82.8
D94: -0.01425 | E94: 83.7 | O94: -0.01425 | P94: 83.7 | Z94: -0.01425 | AA94: 83.7 | AK94: -0.01425 | AL94: 83.7 | AV94: -0.01425 | AW94: 83.7 | BG94: -0.01425 | BH94: 83.7 | BR94: -0.01425 | BS94: 83.7 | CC94: -0.01425 | CD94: 83.7 | CN94: -0.01425 | CO94: 83.7 | CY94: -0.01425 | CZ94: 83.7 | DJ94: -0.01425 | DK94: 83.7 | DU94: -0.01425 | DV94: 83.7
D95: -0.014 | E95: 84.6 | O95: -0.014 | P95: 84.6 | Z95: -0.014 | AA95: 84.6 | AK95: -0.014 | AL95: 84.6 | AV95: -0.014 | AW95: 84.6 | BG95: -0.014 | BH95: 84.6 | BR95: -0.014 | BS95: 84.6 | CC95: -0.014 | CD95: 84.6 | CN95: -0.014 | CO95: 84.6 | CY95: -0.014 | CZ95: 84.6 | DJ95: -0.014 | DK95: 84.6 | DU95: -0.014 | DV95: 84.6
D96: -0.01375 | E96: 85.5 | O96: -0.01375 | P96: 85.5 | Z96: -0.01375 | AA96: 85.5 | AK96: -0.01375 | AL96: 85.5 | AV96: -0.01375 | AW96: 85.5 | BG96: -0.01375 | BH96: 85.5 | BR96: -0.01375 | BS96: 85.5 | CC96: -0.01375 | CD96: 85.5 | CN96: -0.01375 | CO96: 85.5 | CY96: -0.01375 | CZ96: 85.5 | DJ96: -0.01375 | DK96: 85.5 | DU96: -0.01375 | DV96: 85.5
D97: -0.0135 | E97: 86.4 | O97: -0.0135 | P97: 86.4 | Z97: -0.0135 | AA97: 86.4 | AK97: -0.0135 | AL97: 86.4 | AV97: -0.0135 | AW97: 86.4 | BG97: -0.0135 | BH97: 86.4 | BR97: -0.0135 | BS97: 86.4 | CC97: -0.0135 | CD97: 86.4 | CN97: -0.0135 | CO97: 86.4 | CY97: -0.0135 | CZ97: 86.4 | DJ97: -0.0135 | DK97: 86.4 | DU97: -0.0135 | DV97: 86.4
D98: -0.01325 | E98: 87.3 | O98: -0.01325 | P98: 87.3 | Z98: -0.01325 | AA98: 87.3 | AK98: -0.01325 | AL98: 87.3 | AV98: -0.01325 | AW98: 87.3 | BG98: -0.01325 | BH98: 87.3 | BR98: -0.01325 | BS98: 87.3 | CC98: -0.01325 | CD98: 87.3 | CN98: -0.01325 | CO98: 87.3 | CY98: -0.01325 | CZ98: 87.3 | DJ98: -0.01325 | DK98: 87.3 | DU98: -0.01325 | DV98: 87.3
D99: -0.013 | E99: 88.2 | O99: -0.013 | P99: 88.2 | Z99: -0.013 | AA99: 88.2 | AK99: -0.013 | AL99: 88.2 | AV99: -0.013 | AW99: 88.2 | BG99: -0.013 | BH99: 88.2 | BR99: -0.013 | BS99: 88.2 | CC99: -0.013 | CD99: 88.2 | CN99: -0.013 | CO99: 88.2 | CY99: -0.013 | CZ99: 88.2 | DJ99: -0.013 | DK99: 88.2 | DU99: -0.013 | DV99: 88.2
D100: -0.01275 | E100: 89.1 | O100: -0.01275 | P100: 89.1 | Z100: -0.01275 | AA100: 89.1 | AK100: -0.01275 | AL100: 89.1 | AV100: -0.01275 | AW100: 89.1 | BG100: -0.01275 | BH100: 89.1 | BR100: -0.01275 | BS100: 89.1 | CC100: -0.01275 | CD100: 89.1 | CN100: -0.01275 | CO100: 89.1 | CY100: -0.01275 | CZ100: 89.1 | DJ100: -0.01275 | DK100: 89.1 | DU100: -0.01275 | DV100: 89.1
D101: -0.0125 | E101: 90 | O101: -0.0125 | P101: 90 | Z101: -0.0125 | AA101: 90 | AK101: -0.0125 | AL101: 90 | AV101: -0.0125 | AW101: 90 | BG101: -0.0125 | BH101: 90 | BR101: -0.0125 | BS101: 90 | CC101: -0.0125 | CD101: 90 | CN101: -0.0125 | CO101: 90 | CY101: -0.0125 | CZ101: 90 | DJ101: -0.0125 | DK101: 90 | DU101: -0.0125 | DV101: 90
D102: -0.01225 | E102: 90.9 | O102: -0.01225 | P102: 90.9 | Z102: -0.01225 | AA102: 90.9 | AK102: -0.01225 | AL102: 90.9 | AV102: -0.01225 | AW102: 90.9 | BG102: -0.01225 | BH102: 90.9 | BR102: -0.01225 | BS102: 90.9 | CC102: -0.01225 | CD102: 90.9 | CN102: -0.01225 | CO102: 90.9 | CY102: -0.01225 | CZ102: 90.9 | DJ102: -0.01225 | DK102: 90.9 | DU102: -0.01225 | DV102: 90.9
D103: -0.012 | E103: 91.8 | O103: -0.012 | P103: 91.8 | Z103: -0.012 | AA103: 91.8 | AK103: -0.012 | AL103: 91.8 | AV103: -0.012 | AW103: 91.8 | BG103: -0.012 | BH103: 91.8 | BR103: -0.012 | BS103: 91.8 | CC103: -0.012 | CD103: 91.8 | CN103: -0.012 | CO103: 91.8 | CY103: -0.012 | CZ103: 91.8 | DJ103: -0.012 | DK103: 91.8 | DU103: -0.012 | DV103: 91.8
D104: -0.01175 | E104: 92.7 | O104: -0.01175 | P104: 92.7 | Z104: -0.01175 | AA104: 92.7 | AK104: -0.01175 | AL104: 92.7 | AV104: -0.01175 | AW104: 92.7 | BG104: -0.01175 | BH104: 92.7 | BR104: -0.01175 | BS104: 92.7 | CC104: -0.01175 | CD104: 92.7 | CN104: -0.01175 | CO104: 92.7 | CY104: -0.01175 | CZ104: 92.7 | DJ104: -0.01175 | DK104: 92.7 | DU104: -0.01175 | DV104: 92.7
D105: -0.0115 | E105: 93.6 | O105: -0.0115 | P105: 93.6 | Z105: -0.0115 | AA105: 93.6 | AK105: -0.0115 | AL105: 93.6 | AV105: -0.0115 | AW105: 93.6 | BG105: -0.0115 | BH105: 93.6 | BR105: -0.0115 | BS105: 93.6 | CC105: -0.0115 | CD105: 93.6 | CN105: -0.0115 | CO105: 93.6 | CY105: -0.0115 | CZ105: 93.6 | DJ105: -0.0115 | DK105: 93.6 | DU105: -0.0115 | DV105: 93.6
D106: -0.01125 | E106: 94.5 | O106: -0.01125 | P106: 94.5 | Z106: -0.01125 | AA106: 94.5 | AK106: -0.01125 | AL106: 94.5 | AV106: -0.01125 | AW106: 94.5 | BG106: -0.01125 | BH106: 94.5 | BR106: -0.01125 | BS106: 94.5 | CC106: -0.01125 | CD106: 94.5 | CN106: -0.01125 | CO106: 94.5 | CY106: -0.01125 | CZ106: 94.5 | DJ106: -0.01125 | DK106: 94.5 | DU106: -0.01125 | DV106: 94.5
D107: -0.011 | E107: 95.4 | O107: -0.011 | P107: 95.4 | Z107: -0.011 | AA107: 95.4 | AK107: -0.011 | AL107: 95.4 | AV107: -0.011 | AW107: 95.4 | BG107: -0.011 | BH107: 95.4 | BR107: -0.011 | BS107: 95.4 | CC107: -0.011 | CD107: 95.4 | CN107: -0.011 | CO107: 95.4 | CY107: -0.011 | CZ107: 95.4 | DJ107: -0.011 | DK107: 95.4 | DU107: -0.011 | DV107: 95.4
D108: -0.01075 | E108: 96.3 | O108: -0.01075 | P108: 96.3 | Z108: -0.01075 | AA108: 96.3 | AK108: -0.01075 | AL108: 96.3 | AV108: -0.01075 | AW108: 96.3 | BG108: -0.01075 | BH108: 96.3 | BR108: -0.01075 | BS108: 96.3 | CC108: -0.01075 | CD108: 96.3 | CN108: -0.01075 | CO108: 96.3 | CY108: -0.01075 | CZ108: 96.3 | DJ108: -0.01075 | DK108: 96.3 | DU108: -0.01075 | DV108: 96.3
D109: -0.0105 | E109: 97.2 | O109: -0.0105 | P109: 97.2 | Z109: -0.0105 | AA109: 97.2 | AK109: -0.0105 | AL109: 97.2 | AV109: -0.0105 | AW109: 97.2 | BG109: -0.0105 | BH109: 97.2 | BR109: -0.0105 | BS109: 97.2 | CC109: -0.0105 | CD109: 97.2 | CN109: -0.0105 | CO109: 97.2 | CY109: -0.0105 | CZ109: 97.2 | DJ109: -0.0105 | DK109: 97.2 | DU109: -0.0105 | DV109: 97.2
D110: -0.01025 | E110: 98.1 | O110: -0.01025 | P110: 98.1 | Z110: -0.01025 | AA110: 98.1 | AK110: -0.01025 | AL110: 98.1 | AV110: -0.01025 | AW110: 98.1 | BG110: -0.01025 | BH110: 98.1 | BR110: -0.01025 | BS110: 98.1 | CC110: -0.01025 | CD110: 98.1 | CN110: -0.01025 | CO110: 98.1 | CY110: -0.01025 | CZ110: 98.1 | DJ110: -0.01025 | DK110: 98.1 | DU110: -0.01025 | DV110: 98.1
D111: -0.01 | E111: 99 | O111: -0.01 | P111: 99 | Z111: -0.01 | AA111: 99 | AK111: -0.01 | AL111: 99 | AV111: -0.01 | AW111: 99 | BG111: -0.01 | BH111: 99 | BR111: -0.01 | BS111: 99 | CC111: -0.01 | CD111: 99 | CN111: -0.01 | CO111: 99 | CY111: -0.01 | CZ111: 99 | DJ111: -0.01 | DK111: 99 | DU111: -0.01 | DV111: 99
D112: -0.00975 | E112: 99.9 | O112: -0.00975 | P112: 99.9 | Z112: -0.00975 | AA112: 99.9 | AK112: -0.00975 | AL112: 99.9 | AV112: -0.00975 | AW112: 99.9 | BG112: -0.00975 | BH112: 99.9 | BR112: -0.00975 | BS112: 99.9 | CC112: -0.00975 | CD112: 99.9 | CN112: -0.00975 | CO112: 99.9 | CY112: -0.00975 | CZ112: 99.9 | DJ112: -0.00975 | DK112: 99.9 | DU112: -0.00975 | DV112: 99.9
D113: -0.0095 | E113: 100.8 | O113: -0.0095 | P113: 100.8 | Z113: -0.0095 | AA113: 100.8 | AK113: -0.0095 | AL113: 100.8 | AV113: -0.0095 | AW113: 100.8 | BG113: -0.0095 | BH113: 100.8 | BR113: -0.0095 | BS113: 100.8 | CC113: -0.0095 | CD113: 100.8 | CN113: -0.0095 | CO113: 100.8 | CY113: -0.0095 | CZ113: 100.8 | DJ113: -0.0095 | DK113: 100.8 | DU113: -0.0095 | DV113: 100.8
D114: -0.00925 | E114: 101.7 | O114: -0.00925 | P114: 101.7 | Z114: -0.00925 | AA114: 101.7 | AK114: -0.00925 | AL114: 101.7 | AV114: -0.00925 | AW114: 101.7 | BG114: -0.00925 | BH114: 101.7 | BR114: -0.00925 | BS114: 101.7 | CC114: -0.00925 | CD114: 101.7 | CN114: -0.00925 | CO114: 101.7 | CY114: -0.00925 | CZ114: 101.7 | DJ114: -0.00925 | DK114: 101.7 | DU114: -0.00925 | DV114: 101.7
D115: -0.009 | E115: 102.6 | O115: -0.009 | P115: 102.6 | Z115: -0.009 | AA115: 102.6 | AK115: -0.009 | AL115: 102.6 | AV115: -0.009 | AW115: 102.6 | BG115: -0.009 | BH115: 102.6 | BR115: -0.009 | BS115: 102.6 | CC115: -0.009 | CD115: 102.6 | CN115: -0.009 | CO115: 102.6 | CY115: -0.009 | CZ115: 102.6 | DJ115: -0.009 | DK115: 102.6 | DU115: -0.009 | DV115: 102.6
D116: -0.00875 | E116: 103.5 | O116: -0.00875 | P116: 103.5 | Z116: -0.00875 | AA116: 103.5 | AK116: -0.00875 | AL116: 103.5 | AV116: -0.00875 | AW116: 103.5 | BG116: -0.00875 | BH116: 103.5 | BR116: -0.00875 | BS116: 103.5 | CC116: -0.00875 | CD116: 103.5 | CN116: -0.00875 | CO116: 103.5 | CY116: -0.00875 | CZ116: 103.5 | DJ116: -0.00875 | DK116: 103.5 | DU116: -0.00875 | DV116: 103.5
D117: -0.0085 | E117: 104.4 | O117: -0.0085 | P117: 104.4 | Z117: -0.0085 | AA117: 104.4 | AK117: -0.0085 | AL117: 104.4 | AV117: -0.0085 | AW117: 104.4 | BG117: -0.0085 | BH117: 104.4 | BR117: -0.0085 | BS117: 104.4 | CC117: -0.0085 | CD117: 104.4 | CN117: -0.0085 | CO117: 104.4 | CY117: -0.0085 | CZ117: 104.4 | DJ117: -0.0085 | DK117: 104.4 | DU117: -0.0085 | DV117: 104.4
D118: -0.00825 | E118: 105.3 | O118: -0.00825 | P118: 105.3 | Z118: -0.00825 | AA118: 105.3 | AK118: -0.00825 | AL118: 105.3 | AV118: -0.00825 | AW118: 105.3 | BG118: -0.00825 | BH118: 105.3 | BR118: -0.00825 | BS118: 105.3 | CC118: -0.00825 | CD118: 105.3 | CN118: -0.00825 | CO118: 105.3 | CY118: -0.00825 | CZ118: 105.3 | DJ118: -0.00825 | DK118: 105.3 | DU118: -0.00825 | DV118: 105.3
D119: -0.008 | E119: 106.2 | O119: -0.008 | P119: 106.2 | Z119: -0.008 | AA119: 106.2 | AK119: -0.008 | AL119: 106.2 | AV119: -0.008 | AW119: 106.2 | BG119: -0.008 | BH119: 106.2 | BR119: -0.008 | BS119: 106.2 | CC119: -0.008 | CD119: 106.2 | CN119: -0.008 | CO119: 106.2 | CY119: -0.008 | CZ119: 106.2 | DJ119: -0.008 | DK119: 106.2 | DU119: -0.008 | DV119: 106.2
D120: -0.00775 | E120: 107.1 | O120: -0.00775 | P120: 107.1 | Z120: -0.00775 | AA120: 107.1 | AK120: -0.00775 | AL120: 107.1 | AV120: -0.00775 | AW120: 107.1 | BG120: -0.00775 | BH120: 107.1 | BR120: -0.00775 | BS120: 107.1 | CC120: -0.00775 | CD120: 107.1 | CN120: -0.00775 | CO120: 107.1 | CY120: -0.00775 | CZ120: 107.1 | DJ120: -0.00775 | DK120: 107.1 | DU120: -0.00775 | DV120: 107.1
D121: -0.0075 | E121: 108 | O121: -0.0075 | P121: 108 | Z121: -0.0075 | AA121: 108 | AK121: -0.0075 | AL121: 108 | AV121: -0.0075 | AW121: 108 | BG121: -0.0075 | BH121: 108 | BR121: -0.0075 | BS121: 108 | CC121: -0.0075 | CD121: 108 | CN121: -0.0075 | CO121: 108 | CY121: -0.0075 | CZ121: 108 | DJ121: -0.0075 | DK121: 108 | DU121: -0.0075 | DV121: 108
D122: -0.00725 | E122: 108.9 | O122: -0.00725 | P122: 108.9 | Z122: -0.00725 | AA122: 108.9 | AK122: -0.00725 | AL122: 108.9 | AV122: -0.00725 | AW122: 108.9 | BG122: -0.00725 | BH122: 108.9 | BR122: -0.00725 | BS122: 108.9 | CC122: -0.00725 | CD122: 108.9 | CN122: -0.00725 | CO122: 108.9 | CY122: -0.00725 | CZ122: 108.9 | DJ122: -0.00725 | DK122: 108.9 | DU122: -0.00725 | DV122: 108.9
D123: -0.007 | E123: 109.8 | O123: -0.007 | P123: 109.8 | Z123: -0.007 | AA123: 109.8 | AK123: -0.007 | AL123: 109.8 | AV123: -0.007 | AW123: 109.8 | BG123: -0.007 | BH123: 109.8 | BR123: -0.007 | BS123: 109.8 | CC123: -0.007 | CD123: 109.8 | CN123: -0.007 | CO123: 109.8 | CY123: -0.007 | CZ123: 109.8 | DJ123: -0.007 | DK123: 109.8 | DU123: -0.007 | DV123: 109.8
D124: -0.00675 | E124: 110.7 | O124: -0.00675 | P124: 110.7 | Z124: -0.00675 | AA124: 110.7 | AK124: -0.00675 | AL124: 110.7 | AV124: -0.00675 | AW124: 110.7 | BG124: -0.00675 | BH124: 110.7 | BR124: -0.00675 | BS124: 110.7 | CC124: -0.00675 | CD124: 110.7 | CN124: -0.00675 | CO124: 110.7 | CY124: -0.00675 | CZ124: 110.7 | DJ124: -0.00675 | DK124: 110.7 | DU124: -0.00675 | DV124: 110.7
D125: -0.0065 | E125: 111.6 | O125: -0.0065 | P125: 111.6 | Z125: -0.0065 | AA125: 111.6 | AK125: -0.0065 | AL125: 111.6 | AV125: -0.0065 | AW125: 111.6 | BG125: -0.0065 | BH125: 111.6 | BR125: -0.0065 | BS125: 111.6 | CC125: -0.0065 | CD125: 111.6 | CN125: -0.0065 | CO125: 111.6 | CY125: -0.0065 | CZ125: 111.6 | DJ125: -0.0065 | DK125: 111.6 | DU125: -0.0065 | DV125: 111.6
D126: -0.00625 | E126: 112.5 | O126: -0.00625 | P126: 112.5 | Z126: -0.00625 | AA126: 112.5 | AK126: -0.00625 | AL126: 112.5 | AV126: -0.00625 | AW126: 112.5 | BG126: -0.00625 | BH126: 112.5 | BR126: -0.00625 | BS126: 112.5 | CC126: -0.00625 | CD126: 112.5 | CN126: -0.00625 | CO126: 112.5 | CY126: -0.00625 | CZ126: 112.5 | DJ126: -0.00625 | DK126: 112.5 | DU126: -0.00625 | DV126: 112.5
D127: -0.006 | E127: 113.4 | O127: -0.006 | P127: 113.4 | Z127: -0.006 | AA127: 113.4 | AK127: -0.006 | AL127: 113.4 | AV127: -0.006 | AW127: 113.4 | BG127: -0.006 | BH127: 113.4 | BR127: -0.006 | BS127: 113.4 | CC127: -0.006 | CD127: 113.4 | CN127: -0.006 | CO127: 113.4 | CY127: -0.006 | CZ127: 113.4 | DJ127: -0.006 | DK127: 113.4 | DU127: -0.006 | DV127: 113.4
D128: -0.00575 | E128: 114.3 | O128: -0.00575 | P128: 114.3 | Z128: -0.00575 | AA128: 114.3 | AK128: -0.00575 | AL128: 114.3 | AV128: -0.00575 | AW128: 114.3 | BG128: -0.00575 | BH128: 114.3 | BR128: -0.00575 | BS128: 114.3 | CC128: -0.00575 | CD128: 114.3 | CN128: -0.00575 | CO128: 114.3 | CY128: -0.00575 | CZ128: 114.3 | DJ128: -0.00575 | DK128: 114.3 | DU128: -0.00575 | DV128: 114.3
D129: -0.0055 | E129: 115.2 | O129: -0.0055 | P129: 115.2 | Z129: -0.0055 | AA129: 115.2 | AK129: -0.0055 | AL129: 115.2 | AV129: -0.0055 | AW129: 115.2 | BG129: -0.0055 | BH129: 115.2 | BR129: -0.0055 | BS129: 115.2 | CC129: -0.0055 | CD129: 115.2 | CN129: -0.0055 | CO129: 115.2 | CY129: -0.0055 | CZ129: 115.2 | DJ129: -0.0055 | DK129: 115.2 | DU129: -0.0055 | DV129: 115.2
D130: -0.00525 | E130: 116.1 | O130: -0.00525 | P130: 116.1 | Z130: -0.00525 | AA130: 116.1 | AK130: -0.00525 | AL130: 116.1 | AV130: -0.00525 | AW130: 116.1 | BG130: -0.00525 | BH130: 116.1 | BR130: -0.00525 | BS130: 116.1 | CC130: -0.00525 | CD130: 116.1 | CN130: -0.00525 | CO130: 116.1 | CY130: -0.00525 | CZ130: 116.1 | DJ130: -0.00525 | DK130: 116.1 | DU130: -0.00525 | DV130: 116.1
D131: -0.005 | E131: 117 | O131: -0.005 | P131: 117 | Z131: -0.005 | AA131: 117 | AK131: -0.005 | AL131: 117 | AV131: -0.005 | AW131: 117 | BG131: -0.005 | BH131: 117 | BR131: -0.005 | BS131: 117 | CC131: -0.005 | CD131: 117 | CN131: -0.005 | CO131: 117 | CY131: -0.005 | CZ131: 117 | DJ131: -0.005 | DK131: 117 | DU131: -0.005 | DV131: 117
D132: -0.00475 | E132: 117.9 | O132: -0.00475 | P132: 117.9 | Z132: -0.00475 | AA132: 117.9 | AK132: -0.00475 | AL132: 117.9 | AV132: -0.00475 | AW132: 117.9 | BG132: -0.00475 | BH132: 117.9 | BR132: -0.00475 | BS132: 117.9 | CC132: -0.00475 | CD132: 117.9 | CN132: -0.00475 | CO132: 117.9 | CY132: -0.00475 | CZ132: 117.9 | DJ132: -0.00475 | DK132: 117.9 | DU132: -0.00475 | DV132: 117.9
D133: -0.0045 | E133: 118.8 | O133: -0.0045 | P133: 118.8 | Z133: -0.0045 | AA133: 118.8 | AK133: -0.0045 | AL133: 118.8 | AV133: -0.0045 | AW133: 118.8 | BG133: -0.0045 | BH133: 118.8 | BR133: -0.0045 | BS133: 118.8 | CC133: -0.0045 | CD133: 118.8 | CN133: -0.0045 | CO133: 118.8 | CY133: -0.0045 | CZ133: 118.8 | DJ133: -0.0045 | DK133: 118.8 | DU133: -0.0045 | DV133: 118.8
D134: -0.00425 | E134: 119.7 | O134: -0.00425 | P134: 119.7 | Z134: -0.00425 | AA134: 119.7 | AK134: -0.00425 | AL134: 119.7 | AV134: -0.00425 | AW134: 119.7 | BG134: -0.00425 | BH134: 119.7 | BR134: -0.00425 | BS134: 119.7 | CC134: -0.00425 | CD134: 119.7 | CN134: -0.00425 | CO134: 119.7 | CY134: -0.00425 | CZ134: 119.7 | DJ134: -0.00425 | DK134: 119.7 | DU134: -0.00425 | DV134: 119.7
D135: -0.004 | E135: 120.6 | O135: -0.004 | P135: 120.6 | Z135: -0.004 | AA135: 120.6 | AK135: -0.004 | AL135: 120.6 | AV135: -0.004 | AW135: 120.6 | BG135: -0.004 | BH135: 120.6 | BR135: -0.004 | BS135: 120.6 | CC135: -0.004 | CD135: 120.6 | CN135: -0.004 | CO135: 120.6 | CY135: -0.004 | CZ135: 120.6 | DJ135: -0.004 | DK135: 120.6 | DU135: -0.004 | DV135: 120.6
D136: -0.00375 | E136: 121.5 | O136: -0.00375 | P136: 121.5 | Z136: -0.00375 | AA136: 121.5 | AK136: -0.00375 | AL136: 121.5 | AV136: -0.00375 | AW136: 121.5 | BG136: -0.00375 | BH136: 121.5 | BR136: -0.00375 | BS136: 121.5 | CC136: -0.00375 | CD136: 121.5 | CN136: -0.00375 | CO136: 121.5 | CY136: -0.00375 | CZ136: 121.5 | DJ136: -0.00375 | DK136: 121.5 | DU136: -0.00375 | DV136: 121.5
D137: -0.0035 | E137: 122.4 | O137: -0.0035 | P137: 122.4 | Z137: -0.0035 | AA137: 122.4 | AK137: -0.0035 | AL137: 122.4 | AV137: -0.0035 | AW137: 122.4 | BG137: -0.0035 | BH137: 122.4 | BR137: -0.0035 | BS137: 122.4 | CC137: -0.0035 | CD137: 122.4 | CN137: -0.0035 | CO137: 122.4 | CY137: -0.0035 | CZ137: 122.4 | DJ137: -0.0035 | DK137: 122.4 | DU137: -0.0035 | DV137: 122.4
D138: -0.00325 | E138: 123.3 | O138: -0.00325 | P138: 123.3 | Z138: -0.00325 | AA138: 123.3 | AK138: -0.00325 | AL138: 123.3 | AV138: -0.00325 | AW138: 123.3 | BG138: -0.00325 | BH138: 123.3 | BR138: -0.00325 | BS138: 123.3 | CC138: -0.00325 | CD138: 123.3 | CN138: -0.00325 | CO138: 123.3 | CY138: -0.00325 | CZ138: 123.3 | DJ138: -0.00325 | DK138: 123.3 | DU138: -0.00325 | DV138: 123.3
D139: -0.003 | E139: 124.2 | O139: -0.003 | P139: 124.2 | Z139: -0.003 | AA139: 124.2 | AK139: -0.003 | AL139: 124.2 | AV139: -0.003 | AW139: 124.2 | BG139: -0.003 | BH139: 124.2 | BR139: -0.003 | BS139: 124.2 | CC139: -0.003 | CD139: 124.2 | CN139: -0.003 | CO139: 124.2 | CY139: -0.003 | CZ139: 124.2 | DJ139: -0.003 | DK139: 124.2 | DU139: -0.003 | DV139: 124.2
D140: -0.00275 | E140: 125.1 | O140: -0.00275 | P140: 125.1 | Z140: -0.00275 | AA140: 125.1 | AK140: -0.00275 | AL140: 125.1 | AV140: -0.00275 | AW140: 125.1 | BG140: -0.00275 | BH140: 125.1 | BR140: -0.00275 | BS140: 125.1 | CC140: -0.00275 | CD140: 125.1 | CN140: -0.00275 | CO140: 125.1 | CY140: -0.00275 | CZ140: 125.1 | DJ140: -0.00275 | DK140: 125.1 | DU140: -0.00275 | DV140: 125.1
D141: -0.0025 | E141: 126 | O141: -0.0025 | P141: 126 | Z141: -0.0025 | AA141: 126 | AK141: -0.0025 | AL141: 126 | AV141: -0.0025 | AW141: 126 | BG141: -0.0025 | BH141: 126 | BR141: -0.0025 | BS141: 126 | CC141: -0.0025 | CD141: 126 | CN141: -0.0025 | CO141: 126 | CY141: -0.0025 | CZ141: 126 | DJ141: -0.0025 | DK141: 126 | DU141: -0.0025 | DV141: 126
D142: -0.00225 | E142: 126.9 | O142: -0.00225 | P142: 126.9 | Z142: -0.00225 | AA142: 126.9 | AK142: -0.00225 | AL142: 126.9 | AV142: -0.00225 | AW142: 126.9 | BG142: -0.00225 | BH142: 126.9 | BR142: -0.00225 | BS142: 126.9 | CC142: -0.00225 | CD142: 126.9 | CN142: -0.00225 | CO142: 126.9 | CY142: -0.00225 | CZ142: 126.9 | DJ142: -0.00225 | DK142: 126.9 | DU142: -0.00225 | DV142: 126.9
D143: -0.002 | E143: 127.8 | O143: -0.002 | P143: 127.8 | Z143: -0.002 | AA143: 127.8 | AK143: -0.002 | AL143: 127.8 | AV143: -0.002 | AW143: 127.8 | BG143: -0.002 | BH143: 127.8 | BR143: -0.002 | BS143: 127.8 | CC143: -0.002 | CD143: 127.8 | CN143: -0.002 | CO143: 127.8 | CY143: -0.002 | CZ143: 127.8 | DJ143: -0.002 | DK143: 127.8 | DU143: -0.002 | DV143: 127.8
D144: -0.00175 | E144: 128.7 | O144: -0.00175 | P144: 128.7 | Z144: -0.00175 | AA144: 128.7 | AK144: -0.00175 | AL144: 128.7 | AV144: -0.00175 | AW144: 128.7 | BG144: -0.00175 | BH144: 128.7 | BR144: -0.00175 | BS144: 128.7 | CC144: -0.00175 | CD144: 128.7 | CN144: -0.00175 | CO144: 128.7 | CY144: -0.00175 | CZ144: 128.7 | DJ144: -0.00175 | DK144: 128.7 | DU144: -0.00175 | DV144: 128.7
D145: -0.0015 | E145: 129.6 | O145: -0.0015 | P145: 129.6 | Z145: -0.0015 | AA145: 129.6 | AK145: -0.0015 | AL145: 129.6 | AV145: -0.0015 | AW145: 129.6 | BG145: -0.0015 | BH145: 129.6 | BR145: -0.0015 | BS145: 129.6 | CC145: -0.0015 | CD145: 129.6 | CN145: -0.0015 | CO145: 129.6 | CY145: -0.0015 | CZ145: 129.6 | DJ145: -0.0015 | DK145: 129.6 | DU145: -0.0015 | DV145: 129.6
D146: -0.00125 | E146: 130.5 | O146: -0.00125 | P146: 130.5 | Z146: -0.00125 | AA146: 130.5 | AK146: -0.00125 | AL146: 130.5 | AV146: -0.00125 | AW146: 130.5 | BG146: -0.00125 | BH146: 130.5 | BR146: -0.00125 | BS146: 130.5 | CC146: -0.00125 | CD146: 130.5 | CN146: -0.00125 | CO146: 130.5 | CY146: -0.00125 | CZ146: 130.5 | DJ146: -0.00125 | DK146: 130.5 | DU146: -0.00125 | DV146: 130.5
D147: -0.001 | E147: 131.4 | O147: -0.001 | P147: 131.4 | Z147: -0.001 | AA147: 131.4 | AK147: -0.001 | AL147: 131.4 | AV147: -0.001 | AW147: 131.4 | BG147: -0.001 | BH147: 131.4 | BR147: -0.001 | BS147: 131.4 | CC147: -0.001 | CD147: 131.4 | CN147: -0.001 | CO147: 131.4 | CY147: -0.001 | CZ147: 131.4 | DJ147: -0.001 | DK147: 131.4 | DU147: -0.001 | DV147: 131.4
D148: -0.00075 | E148: 132.3 | O148: -0.00075 | P148: 132.3 | Z148: -0.00075 | AA148: 132.3 | AK148: -0.00075 | AL148: 132.3 | AV148: -0.00075 | AW148: 132.3 | BG148: -0.00075 | BH148: 132.3 | BR148: -0.00075 | BS148: 132.3 | CC148: -0.00075 | CD148: 132.3 | CN148: -0.00075 | CO148: 132.3 | CY148: -0.00075 | CZ148: 132.3 | DJ148: -0.00075 | DK148: 132.3 | DU148: -0.00075 | DV148: 132.3
D149: -0.0005 | E149: 133.2 | O149: -0.0005 | P149: 133.2 | Z149: -0.0005 | AA149: 133.2 | AK149: -0.0005 | AL149: 133.2 | AV149: -0.0005 | AW149: 133.2 | BG149: -0.0005 | BH149: 133.2 | BR149: -0.0005 | BS149: 133.2 | CC149: -0.0005 | CD149: 133.2 | CN149: -0.0005 | CO149: 133.2 | CY149: -0.0005 | CZ149: 133.2 | DJ149: -0.0005 | DK149: 133.2 | DU149: -0.0005 | DV149: 133.2
D150: -0.00025 | E150: 134.1 | O150: -0.00025 | P150: 134.1 | Z150: -0.00025 | AA150: 134.1 | AK150: -0.00025 | AL150: 134.1 | AV150: -0.00025 | AW150: 134.1 | BG150: -0.00025 | BH150: 134.1 | BR150: -0.00025 | BS150: 134.1 | CC150: -0.00025 | CD150: 134.1 | CN150: -0.00025 | CO150: 134.1 | CY150: -0.00025 | CZ150: 134.1 | DJ150: -0.00025 | DK150: 134.1 | DU150: -0.00025 | DV150: 134.1
D151: 3.295974604e-17 | E151: 135 | O151: 3.295974604e-17 | P151: 135 | Z151: 3.295974604e-17 | AA151: 135 | AK151: 3.295974604e-17 | AL151: 135 | AV151: 3.295974604e-17 | AW151: 135 | BG151: 3.295974604e-17 | BH151: 135 | BR151: 3.295974604e-17 | BS151: 135 | CC151: 3.295974604e-17 | CD151: 135 | CN151: 3.295974604e-17 | CO151: 135 | CY151: 3.295974604e-17 | CZ151: 135 | DJ151: 3.295974604e-17 | DK151: 135 | DU151: 3.295974604e-17 | DV151: 135
D152: 0.00025 | E152: 135.9 | O152: 0.00025 | P152: 135.9 | Z152: 0.00025 | AA152: 135.9 | AK152: 0.00025 | AL152: 135.9 | AV152: 0.00025 | AW152: 135.9 | BG152: 0.00025 | BH152: 135.9 | BR152: 0.00025 | BS152: 135.9 | CC152: 0.00025 | CD152: 135.9 | CN152: 0.00025 | CO152: 135.9 | CY152: 0.00025 | CZ152: 135.9 | DJ152: 0.00025 | DK152: 135.9 | DU152: 0.00025 | DV152: 135.9
D153: 0.0005 | E153: 136.8 | O153: 0.0005 | P153: 136.8 | Z153: 0.0005 | AA153: 136.8 | AK153: 0.0005 | AL153: 136.8 | AV153: 0.0005 | AW153: 136.8 | BG153: 0.0005 | BH153: 136.8 | BR153: 0.0005 | BS153: 136.8 | CC153: 0.0005 | CD153: 136.8 | CN153: 0.0005 | CO153: 136.8 | CY153: 0.0005 | CZ153: 136.8 | DJ153: 0.0005 | DK153: 136.8 | DU153: 0.0005 | DV153: 136.8
D154: 0.00075 | E154: 137.7 | O154: 0.00075 | P154: 137.7 | Z154: 0.00075 | AA154: 137.7 | AK154: 0.00075 | AL154: 137.7 | AV154: 0.00075 | AW154: 137.7 | BG154: 0.00075 | BH154: 137.7 | BR154: 0.00075 | BS154: 137.7 | CC154: 0.00075 | CD154: 137.7 | CN154: 0.00075 | CO154: 137.7 | CY154: 0.00075 | CZ154: 137.7 | DJ154: 0.00075 | DK154: 137.7 | DU154: 0.00075 | DV154: 137.7
D155: 0.001 | E155: 138.6 | O155: 0.001 | P155: 138.6 | Z155: 0.001 | AA155: 138.6 | AK155: 0.001 | AL155: 138.6 | AV155: 0.001 | AW155: 138.6 | BG155: 0.001 | BH155: 138.6 | BR155: 0.001 | BS155: 138.6 | CC155: 0.001 | CD155: 138.6 | CN155: 0.001 | CO155: 138.6 | CY155: 0.001 | CZ155: 138.6 | DJ155: 0.001 | DK155: 138.6 | DU155: 0.001 | DV155: 138.6
D156: 0.00125 | E156: 139.5 | O156: 0.00125 | P156: 139.5 | Z156: 0.00125 | AA156: 139.5 | AK156: 0.00125 | AL156: 139.5 | AV156: 0.00125 | AW156: 139.5 | BG156: 0.00125 | BH156: 139.5 | BR156: 0.00125 | BS156: 139.5 | CC156: 0.00125 | CD156: 139.5 | CN156: 0.00125 | CO156: 139.5 | CY156: 0.00125 | CZ156: 139.5 | DJ156: 0.00125 | DK156: 139.5 | DU156: 0.00125 | DV156: 139.5
D157: 0.0015 | E157: 140.4 | O157: 0.0015 | P157: 140.4 | Z157: 0.0015 | AA157: 140.4 | AK157: 0.0015 | AL157: 140.4 | AV157: 0.0015 | AW157: 140.4 | BG157: 0.0015 | BH157: 140.4 | BR157: 0.0015 | BS157: 140.4 | CC157: 0.0015 | CD157: 140.4 | CN157: 0.0015 | CO157: 140.4 | CY157: 0.0015 | CZ157: 140.4 | DJ157: 0.0015 | DK157: 140.4 | DU157: 0.0015 | DV157: 140.4
D158: 0.00175 | E158: 141.3 | O158: 0.00175 | P158: 141.3 | Z158: 0.00175 | AA158: 141.3 | AK158: 0.00175 | AL158: 141.3 | AV158: 0.00175 | AW158: 141.3 | BG158: 0.00175 | BH158: 141.3 | BR158: 0.00175 | BS158: 141.3 | CC158: 0.00175 | CD158: 141.3 | CN158: 0.00175 | CO158: 141.3 | CY158: 0.00175 | CZ158: 141.3 | DJ158: 0.00175 | DK158: 141.3 | DU158: 0.00175 | DV158: 141.3
D159: 0.002 | E159: 142.2 | O159: 0.002 | P159: 142.2 | Z159: 0.002 | AA159: 142.2 | AK159: 0.002 | AL159: 142.2 | AV159: 0.002 | AW159: 142.2 | BG159: 0.002 | BH159: 142.2 | BR159: 0.002 | BS159: 142.2 | CC159: 0.002 | CD159: 142.2 | CN159: 0.002 | CO159: 142.2 | CY159: 0.002 | CZ159: 142.2 | DJ159: 0.002 | DK159: 142.2 | DU159: 0.002 | DV159: 142.2
D160: 0.00225 | E160: 143.1 | O160: 0.00225 | P160: 143.1 | Z160: 0.00225 | AA160: 143.1 | AK160: 0.00225 | AL160: 143.1 | AV160: 0.00225 | AW160: 143.1 | BG160: 0.00225 | BH160: 143.1 | BR160: 0.00225 | BS160: 143.1 | CC160: 0.00225 | CD160: 143.1 | CN160: 0.00225 | CO160: 143.1 | CY160: 0.00225 | CZ160: 143.1 | DJ160: 0.00225 | DK160: 143.1 | DU160: 0.00225 | DV160: 143.1
D161: 0.0025 | E161: 144 | O161: 0.0025 | P161: 144 | Z161: 0.0025 | AA161: 144 | AK161: 0.0025 | AL161: 144 | AV161: 0.0025 | AW161: 144 | BG161: 0.0025 | BH161: 144 | BR161: 0.0025 | BS161: 144 | CC161: 0.0025 | CD161: 144 | CN161: 0.0025 | CO161: 144 | CY161: 0.0025 | CZ161: 144 | DJ161: 0.0025 | DK161: 144 | DU161: 0.0025 | DV161: 144
D162: 0.00275 | E162: 144.9 | O162: 0.00275 | P162: 144.9 | Z162: 0.00275 | AA162: 144.9 | AK162: 0.00275 | AL162: 144.9 | AV162: 0.00275 | AW162: 144.9 | BG162: 0.00275 | BH162: 144.9 | BR162: 0.00275 | BS162: 144.9 | CC162: 0.00275 | CD162: 144.9 | CN162: 0.00275 | CO162: 144.9 | CY162: 0.00275 | CZ162: 144.9 | DJ162: 0.00275 | DK162: 144.9 | DU162: 0.00275 | DV162: 144.9
D163: 0.003 | E163: 145.8 | O163: 0.003 | P163: 145.8 | Z163: 0.003 | AA163: 145.8 | AK163: 0.003 | AL163: 145.8 | AV163: 0.003 | AW163: 145.8 | BG163: 0.003 | BH163: 145.8 | BR163: 0.003 | BS163: 145.8 | CC163: 0.003 | CD163: 145.8 | CN163: 0.003 | CO163: 145.8 | CY163: 0.003 | CZ163: 145.8 | DJ163: 0.003 | DK163: 145.8 | DU163: 0.003 | DV163: 145.8
D164: 0.00325 | E164: 146.7 | O164: 0.00325 | P164: 146.7 | Z164: 0.00325 | AA164: 146.7 | AK164: 0.00325 | AL164: 146.7 | AV164: 0.00325 | AW164: 146.7 | BG164: 0.00325 | BH164: 146.7 | BR164: 0.00325 | BS164: 146.7 | CC164: 0.00325 | CD164: 146.7 | CN164: 0.00325 | CO164: 146.7 | CY164: 0.00325 | CZ164: 146.7 | DJ164: 0.00325 | DK164: 146.7 | DU164: 0.00325 | DV164: 146.7
D165: 0.0035 | E165: 147.6 | O165: 0.0035 | P165: 147.6 | Z165: 0.0035 | AA165: 147.6 | AK165: 0.0035 | AL165: 147.6 | AV165: 0.0035 | AW165: 147.6 | BG165: 0.0035 | BH165: 147.6 | BR165: 0.0035 | BS165: 147.6 | CC165: 0.0035 | CD165: 147.6 | CN165: 0.0035 | CO165: 147.6 | CY165: 0.0035 | CZ165: 147.6 | DJ165: 0.0035 | DK165: 147.6 | DU165: 0.0035 | DV165: 147.6
D166: 0.00375 | E166: 148.5 | O166: 0.00375 | P166: 148.5 | Z166: 0.00375 | AA166: 148.5 | AK166: 0.00375 | AL166: 148.5 | AV166: 0.00375 | AW166: 148.5 | BG166: 0.00375 | BH166: 148.5 | BR166: 0.00375 | BS166: 148.5 | CC166: 0.00375 | CD166: 148.5 | CN166: 0.00375 | CO166: 148.5 | CY166: 0.00375 | CZ166: 148.5 | DJ166: 0.00375 | DK166: 148.5 | DU166: 0.00375 | DV166: 148.5
D167: 0.004 | E167: 149.4 | O167: 0.004 | P167: 149.4 | Z167: 0.004 | AA167: 149.4 | AK167: 0.004 | AL167: 149.4 | AV167: 0.004 | AW167: 149.4 | BG167: 0.004 | BH167: 149.4 | BR167: 0.004 | BS167: 149.4 | CC167: 0.004 | CD167: 149.4 | CN167: 0.004 | CO167: 149.4 | CY167: 0.004 | CZ167: 149.4 | DJ167: 0.004 | DK167: 149.4 | DU167: 0.004 | DV167: 149.4
D168: 0.00425 | E168: 150.3 | O168: 0.00425 | P168: 150.3 | Z168: 0.00425 | AA168: 150.3 | AK168: 0.00425 | AL168: 150.3 | AV168: 0.00425 | AW168: 150.3 | BG168: 0.00425 | BH168: 150.3 | BR168: 0.00425 | BS168: 150.3 | CC168: 0.00425 | CD168: 150.3 | CN168: 0.00425 | CO168: 150.3 | CY168: 0.00425 | CZ168: 150.3 | DJ168: 0.00425 | DK168: 150.3 | DU168: 0.00425 | DV168: 150.3
D169: 0.0045 | E169: 151.2 | O169: 0.0045 | P169: 151.2 | Z169: 0.0045 | AA169: 151.2 | AK169: 0.0045 | AL169: 151.2 | AV169: 0.0045 | AW169: 151.2 | BG169: 0.0045 | BH169: 151.2 | BR169: 0.0045 | BS169: 151.2 | CC169: 0.0045 | CD169: 151.2 | CN169: 0.0045 | CO169: 151.2 | CY169: 0.0045 | CZ169: 151.2 | DJ169: 0.0045 | DK169: 151.2 | DU169: 0.0045 | DV169: 151.2
D170: 0.00475 | E170: 152.1 | O170: 0.00475 | P170: 152.1 | Z170: 0.00475 | AA170: 152.1 | AK170: 0.00475 | AL170: 152.1 | AV170: 0.00475 | AW170: 152.1 | BG170: 0.00475 | BH170: 152.1 | BR170: 0.00475 | BS170: 152.1 | CC170: 0.00475 | CD170: 152.1 | CN170: 0.00475 | CO170: 152.1 | CY170: 0.00475 | CZ170: 152.1 | DJ170: 0.00475 | DK170: 152.1 | DU170: 0.00475 | DV170: 152.1
D171: 0.005 | E171: 153 | O171: 0.005 | P171: 153 | Z171: 0.005 | AA171: 153 | AK171: 0.005 | AL171: 153 | AV171: 0.005 | AW171: 153 | BG171: 0.005 | BH171: 153 | BR171: 0.005 | BS171: 153 | CC171: 0.005 | CD171: 153 | CN171: 0.005 | CO171: 153 | CY171: 0.005 | CZ171: 153 | DJ171: 0.005 | DK171: 153 | DU171: 0.005 | DV171: 153
D172: 0.00525 | E172: 153.9 | O172: 0.00525 | P172: 153.9 | Z172: 0.00525 | AA172: 153.9 | AK172: 0.00525 | AL172: 153.9 | AV172: 0.00525 | AW172: 153.9 | BG172: 0.00525 | BH172: 153.9 | BR172: 0.00525 | BS172: 153.9 | CC172: 0.00525 | CD172: 153.9 | CN172: 0.00525 | CO172: 153.9 | CY172: 0.00525 | CZ172: 153.9 | DJ172: 0.00525 | DK172: 153.9 | DU172: 0.00525 | DV172: 153.9
D173: 0.0055 | E173: 154.8 | O173: 0.0055 | P173: 154.8 | Z173: 0.0055 | AA173: 154.8 | AK173: 0.0055 | AL173: 154.8 | AV173: 0.0055 | AW173: 154.8 | BG173: 0.0055 | BH173: 154.8 | BR173: 0.0055 | BS173: 154.8 | CC173: 0.0055 | CD173: 154.8 | CN173: 0.0055 | CO173: 154.8 | CY173: 0.0055 | CZ173: 154.8 | DJ173: 0.0055 | DK173: 154.8 | DU173: 0.0055 | DV173: 154.8
D174: 0.00575 | E174: 155.7 | O174: 0.00575 | P174: 155.7 | Z174: 0.00575 | AA174: 155.7 | AK174: 0.00575 | AL174: 155.7 | AV174: 0.00575 | AW174: 155.7 | BG174: 0.00575 | BH174: 155.7 | BR174: 0.00575 | BS174: 155.7 | CC174: 0.00575 | CD174: 155.7 | CN174: 0.00575 | CO174: 155.7 | CY174: 0.00575 | CZ174: 155.7 | DJ174: 0.00575 | DK174: 155.7 | DU174: 0.00575 | DV174: 155.7
D175: 0.006 | E175: 156.6 | O175: 0.006 | P175: 156.6 | Z175: 0.006 | AA175: 156.6 | AK175: 0.006 | AL175: 156.6 | AV175: 0.006 | AW175: 156.6 | BG175: 0.006 | BH175: 156.6 | BR175: 0.006 | BS175: 156.6 | CC175: 0.006 | CD175: 156.6 | CN175: 0.006 | CO175: 156.6 | CY175: 0.006 | CZ175: 156.6 | DJ175: 0.006 | DK175: 156.6 | DU175: 0.006 | DV175: 156.6
D176: 0.00625 | E176: 157.5 | O176: 0.00625 | P176: 157.5 | Z176: 0.00625 | AA176: 157.5 | AK176: 0.00625 | AL176: 157.5 | AV176: 0.00625 | AW176: 157.5 | BG176: 0.00625 | BH176: 157.5 | BR176: 0.00625 | BS176: 157.5 | CC176: 0.00625 | CD176: 157.5 | CN176: 0.00625 | CO176: 157.5 | CY176: 0.00625 | CZ176: 157.5 | DJ176: 0.00625 | DK176: 157.5 | DU176: 0.00625 | DV176: 157.5
D177: 0.0065 | E177: 158.4 | O177: 0.0065 | P177: 158.4 | Z177: 0.0065 | AA177: 158.4 | AK177: 0.0065 | AL177: 158.4 | AV177: 0.0065 | AW177: 158.4 | BG177: 0.0065 | BH177: 158.4 | BR177: 0.0065 | BS177: 158.4 | CC177: 0.0065 | CD177: 158.4 | CN177: 0.0065 | CO177: 158.4 | CY177: 0.0065 | CZ177: 158.4 | DJ177: 0.0065 | DK177: 158.4 | DU177: 0.0065 | DV177: 158.4
D178: 0.00675 | E178: 159.3 | O178: 0.00675 | P178: 159.3 | Z178: 0.00675 | AA178: 159.3 | AK178: 0.00675 | AL178: 159.3 | AV178: 0.00675 | AW178: 159.3 | BG178: 0.00675 | BH178: 159.3 | BR178: 0.00675 | BS178: 159.3 | CC178: 0.00675 | CD178: 159.3 | CN178: 0.00675 | CO178: 159.3 | CY178: 0.00675 | CZ178: 159.3 | DJ178: 0.00675 | DK178: 159.3 | DU178: 0.00675 | DV178: 159.3
D179: 0.007 | E179: 160.2 | O179: 0.007 | P179: 160.2 | Z179: 0.007 | AA179: 160.2 | AK179: 0.007 | AL179: 160.2 | AV179: 0.007 | AW179: 160.2 | BG179: 0.007 | BH179: 160.2 | BR179: 0.007 | BS179: 160.2 | CC179: 0.007 | CD179: 160.2 | CN179: 0.007 | CO179: 160.2 | CY179: 0.007 | CZ179: 160.2 | DJ179: 0.007 | DK179: 160.2 | DU179: 0.007 | DV179: 160.2
D180: 0.00725 | E180: 161.1 | O180: 0.00725 | P180: 161.1 | Z180: 0.00725 | AA180: 161.1 | AK180: 0.00725 | AL180: 161.1 | AV180: 0.00725 | AW180: 161.1 | BG180: 0.00725 | BH180: 161.1 | BR180: 0.00725 | BS180: 161.1 | CC180: 0.00725 | CD180: 161.1 | CN180: 0.00725 | CO180: 161.1 | CY180: 0.00725 | CZ180: 161.1 | DJ180: 0.00725 | DK180: 161.1 | DU180: 0.00725 | DV180: 161.1
D181: 0.0075 | E181: 162 | O181: 0.0075 | P181: 162 | Z181: 0.0075 | AA181: 162 | AK181: 0.0075 | AL181: 162 | AV181: 0.0075 | AW181: 162 | BG181: 0.0075 | BH181: 162 | BR181: 0.0075 | BS181: 162 | CC181: 0.0075 | CD181: 162 | CN181: 0.0075 | CO181: 162 | CY181: 0.0075 | CZ181: 162 | DJ181: 0.0075 | DK181: 162 | DU181: 0.0075 | DV181: 162
D182: 0.00775 | E182: 162.9 | O182: 0.00775 | P182: 162.9 | Z182: 0.00775 | AA182: 162.9 | AK182: 0.00775 | AL182: 162.9 | AV182: 0.00775 | AW182: 162.9 | BG182: 0.00775 | BH182: 162.9 | BR182: 0.00775 | BS182: 162.9 | CC182: 0.00775 | CD182: 162.9 | CN182: 0.00775 | CO182: 162.9 | CY182: 0.00775 | CZ182: 162.9 | DJ182: 0.00775 | DK182: 162.9 | DU182: 0.00775 | DV182: 162.9
D183: 0.008 | E183: 163.8 | O183: 0.008 | P183: 163.8 | Z183: 0.008 | AA183: 163.8 | AK183: 0.008 | AL183: 163.8 | AV183: 0.008 | AW183: 163.8 | BG183: 0.008 | BH183: 163.8 | BR183: 0.008 | BS183: 163.8 | CC183: 0.008 | CD183: 163.8 | CN183: 0.008 | CO183: 163.8 | CY183: 0.008 | CZ183: 163.8 | DJ183: 0.008 | DK183: 163.8 | DU183: 0.008 | DV183: 163.8
D184: 0.00825 | E184: 164.7 | O184: 0.00825 | P184: 164.7 | Z184: 0.00825 | AA184: 164.7 | AK184: 0.00825 | AL184: 164.7 | AV184: 0.00825 | AW184: 164.7 | BG184: 0.00825 | BH184: 164.7 | BR184: 0.00825 | BS184: 164.7 | CC184: 0.00825 | CD184: 164.7 | CN184: 0.00825 | CO184: 164.7 | CY184: 0.00825 | CZ184: 164.7 | DJ184: 0.00825 | DK184: 164.7 | DU184: 0.00825 | DV184: 164.7
D185: 0.0085 | E185: 165.6 | O185: 0.0085 | P185: 165.6 | Z185: 0.0085 | AA185: 165.6 | AK185: 0.0085 | AL185: 165.6 | AV185: 0.0085 | AW185: 165.6 | BG185: 0.0085 | BH185: 165.6 | BR185: 0.0085 | BS185: 165.6 | CC185: 0.0085 | CD185: 165.6 | CN185: 0.0085 | CO185: 165.6 | CY185: 0.0085 | CZ185: 165.6 | DJ185: 0.0085 | DK185: 165.6 | DU185: 0.0085 | DV185: 165.6
D186: 0.00875 | E186: 166.5 | O186: 0.00875 | P186: 166.5 | Z186: 0.00875 | AA186: 166.5 | AK186: 0.00875 | AL186: 166.5 | AV186: 0.00875 | AW186: 166.5 | BG186: 0.00875 | BH186: 166.5 | BR186: 0.00875 | BS186: 166.5 | CC186: 0.00875 | CD186: 166.5 | CN186: 0.00875 | CO186: 166.5 | CY186: 0.00875 | CZ186: 166.5 | DJ186: 0.00875 | DK186: 166.5 | DU186: 0.00875 | DV186: 166.5
D187: 0.009 | E187: 167.4 | O187: 0.009 | P187: 167.4 | Z187: 0.009 | AA187: 167.4 | AK187: 0.009 | AL187: 167.4 | AV187: 0.009 | AW187: 167.4 | BG187: 0.009 | BH187: 167.4 | BR187: 0.009 | BS187: 167.4 | CC187: 0.009 | CD187: 167.4 | CN187: 0.009 | CO187: 167.4 | CY187: 0.009 | CZ187: 167.4 | DJ187: 0.009 | DK187: 167.4 | DU187: 0.009 | DV187: 167.4
D188: 0.00925 | E188: 168.3 | O188: 0.00925 | P188: 168.3 | Z188: 0.00925 | AA188: 168.3 | AK188: 0.00925 | AL188: 168.3 | AV188: 0.00925 | AW188: 168.3 | BG188: 0.00925 | BH188: 168.3 | BR188: 0.00925 | BS188: 168.3 | CC188: 0.00925 | CD188: 168.3 | CN188: 0.00925 | CO188: 168.3 | CY188: 0.00925 | CZ188: 168.3 | DJ188: 0.00925 | DK188: 168.3 | DU188: 0.00925 | DV188: 168.3
D189: 0.0095 | E189: 169.2 | O189: 0.0095 | P189: 169.2 | Z189: 0.0095 | AA189: 169.2 | AK189: 0.0095 | AL189: 169.2 | AV189: 0.0095 | AW189: 169.2 | BG189: 0.0095 | BH189: 169.2 | BR189: 0.0095 | BS189: 169.2 | CC189: 0.0095 | CD189: 169.2 | CN189: 0.0095 | CO189: 169.2 | CY189: 0.0095 | CZ189: 169.2 | DJ189: 0.0095 | DK189: 169.2 | DU189: 0.0095 | DV189: 169.2
D190: 0.00975 | E190: 170.1 | O190: 0.00975 | P190: 170.1 | Z190: 0.00975 | AA190: 170.1 | AK190: 0.00975 | AL190: 170.1 | AV190: 0.00975 | AW190: 170.1 | BG190: 0.00975 | BH190: 170.1 | BR190: 0.00975 | BS190: 170.1 | CC190: 0.00975 | CD190: 170.1 | CN190: 0.00975 | CO190: 170.1 | CY190: 0.00975 | CZ190: 170.1 | DJ190: 0.00975 | DK190: 170.1 | DU190: 0.00975 | DV190: 170.1
D191: 0.01 | E191: 171 | O191: 0.01 | P191: 171 | Z191: 0.01 | AA191: 171 | AK191: 0.01 | AL191: 171 | AV191: 0.01 | AW191: 171 | BG191: 0.01 | BH191: 171 | BR191: 0.01 | BS191: 171 | CC191: 0.01 | CD191: 171 | CN191: 0.01 | CO191: 171 | CY191: 0.01 | CZ191: 171 | DJ191: 0.01 | DK191: 171 | DU191: 0.01 | DV191: 171
D192: 0.01025 | E192: 171.9 | O192: 0.01025 | P192: 171.9 | Z192: 0.01025 | AA192: 171.9 | AK192: 0.01025 | AL192: 171.9 | AV192: 0.01025 | AW192: 171.9 | BG192: 0.01025 | BH192: 171.9 | BR192: 0.01025 | BS192: 171.9 | CC192: 0.01025 | CD192: 171.9 | CN192: 0.01025 | CO192: 171.9 | CY192: 0.01025 | CZ192: 171.9 | DJ192: 0.01025 | DK192: 171.9 | DU192: 0.01025 | DV192: 171.9
D193: 0.0105 | E193: 172.8 | O193: 0.0105 | P193: 172.8 | Z193: 0.0105 | AA193: 172.8 | AK193: 0.0105 | AL193: 172.8 | AV193: 0.0105 | AW193: 172.8 | BG193: 0.0105 | BH193: 172.8 | BR193: 0.0105 | BS193: 172.8 | CC193: 0.0105 | CD193: 172.8 | CN193: 0.0105 | CO193: 172.8 | CY193: 0.0105 | CZ193: 172.8 | DJ193: 0.0105 | DK193: 172.8 | DU193: 0.0105 | DV193: 172.8
D194: 0.01075 | E194: 173.7 | O194: 0.01075 | P194: 173.7 | Z194: 0.01075 | AA194: 173.7 | AK194: 0.01075 | AL194: 173.7 | AV194: 0.01075 | AW194: 173.7 | BG194: 0.01075 | BH194: 173.7 | BR194: 0.01075 | BS194: 173.7 | CC194: 0.01075 | CD194: 173.7 | CN194: 0.01075 | CO194: 173.7 | CY194: 0.01075 | CZ194: 173.7 | DJ194: 0.01075 | DK194: 173.7 | DU194: 0.01075 | DV194: 173.7
D195: 0.011 | E195: 174.6 | O195: 0.011 | P195: 174.6 | Z195: 0.011 | AA195: 174.6 | AK195: 0.011 | AL195: 174.6 | AV195: 0.011 | AW195: 174.6 | BG195: 0.011 | BH195: 174.6 | BR195: 0.011 | BS195: 174.6 | CC195: 0.011 | CD195: 174.6 | CN195: 0.011 | CO195: 174.6 | CY195: 0.011 | CZ195: 174.6 | DJ195: 0.011 | DK195: 174.6 | DU195: 0.011 | DV195: 174.6
D196: 0.01125 | E196: 175.5 | O196: 0.01125 | P196: 175.5 | Z196: 0.01125 | AA196: 175.5 | AK196: 0.01125 | AL196: 175.5 | AV196: 0.01125 | AW196: 175.5 | BG196: 0.01125 | BH196: 175.5 | BR196: 0.01125 | BS196: 175.5 | CC196: 0.01125 | CD196: 175.5 | CN196: 0.01125 | CO196: 175.5 | CY196: 0.01125 | CZ196: 175.5 | DJ196: 0.01125 | DK196: 175.5 | DU196: 0.01125 | DV196: 175.5
D197: 0.0115 | E197: 176.4 | O197: 0.0115 | P197: 176.4 | Z197: 0.0115 | AA197: 176.4 | AK197: 0.0115 | AL197: 176.4 | AV197: 0.0115 | AW197: 176.4 | BG197: 0.0115 | BH197: 176.4 | BR197: 0.0115 | BS197: 176.4 | CC197: 0.0115 | CD197: 176.4 | CN197: 0.0115 | CO197: 176.4 | CY197: 0.0115 | CZ197: 176.4 | DJ197: 0.0115 | DK197: 176.4 | DU197: 0.0115 | DV197: 176.4
D198: 0.01175 | E198: 177.3 | O198: 0.01175 | P198: 177.3 | Z198: 0.01175 | AA198: 177.3 | AK198: 0.01175 | AL198: 177.3 | AV198: 0.01175 | AW198: 177.3 | BG198: 0.01175 | BH198: 177.3 | BR198: 0.01175 | BS198: 177.3 | CC198: 0.01175 | CD198: 177.3 | CN198: 0.01175 | CO198: 177.3 | CY198: 0.01175 | CZ198: 177.3 | DJ198: 0.01175 | DK198: 177.3 | DU198: 0.01175 | DV198: 177.3
D199: 0.012 | E199: 178.2 | O199: 0.012 | P199: 178.2 | Z199: 0.012 | AA199: 178.2 | AK199: 0.012 | AL199: 178.2 | AV199: 0.012 | AW199: 178.2 | BG199: 0.012 | BH199: 178.2 | BR199: 0.012 | BS199: 178.2 | CC199: 0.012 | CD199: 178.2 | CN199: 0.012 | CO199: 178.2 | CY199: 0.012 | CZ199: 178.2 | DJ199: 0.012 | DK199: 178.2 | DU199: 0.012 | DV199: 178.2
D200: 0.01225 | E200: 179.1 | O200: 0.01225 | P200: 179.1 | Z200: 0.01225 | AA200: 179.1 | AK200: 0.01225 | AL200: 179.1 | AV200: 0.01225 | AW200: 179.1 | BG200: 0.01225 | BH200: 179.1 | BR200: 0.01225 | BS200: 179.1 | CC200: 0.01225 | CD200: 179.1 | CN200: 0.01225 | CO200: 179.1 | CY200: 0.01225 | CZ200: 179.1 | DJ200: 0.01225 | DK200: 179.1 | DU200: 0.01225 | DV200: 179.1
... 101 more rows

Sheet Sheet1 (hidden)
A1: Actual Hours | B1: =HOUR(NOW()) -> 8 | P1: 14:24:30 | Q1: Inner Circle | R1: Inner Circle | S1: Outer Circle | U1: Iner Label | V1: Outer Label
A2: Hours | B2: =IF(B1>=12,B1-12,B1)+MINUTE(NOW())/60 -> 8.066666667 | Q2: 1 | R2: 1 | S2: 1 | U2: . | V2: 1
A3: Needle | B3: 0.02 | Q3: 1 | R3: 1 | U3: . | V3: 2
A4: Rest | B4: =12-B2 -> 3.933333333 | Q4: 1 | R4: 1 | U4: . | V4: 3
Q5: 1 | R5: 1 | U5: . | V5: 4
Q6: 1 | R6: 1 | U6: . | V6: 5
A7: Minutes | B7: =MINUTE(NOW()) -> 4 | Q7: 1 | R7: 1 | U7: . | V7: 6
A8: Needle | B8: 0.02 | Q8: 1 | R8: 1 | U8: . | V8: 7
A9: Rest | B9: =60-B7 -> 56 | Q9: 1 | R9: 1 | U9: . | V9: 8
Q10: 1 | R10: 1 | U10: . | V10: 9
Q11: 1 | R11: 1 | U11: . | V11: 10
A12: Seconds | B12: =SECOND(NOW()) -> 40 | Q12: 1 | R12: 1 | U12: . | V12: 11
A13: Needle | B13: 0.02 | Q13: 1 | R13: 1 | U13: . | V13: 12
A14: Rest | B14: =60-B12 -> 20 | Q14: 1 | U14: .
Q15: 1 | U15: .
Q16: 1 | U16: .
A17: Dial | B17: 3 x 5 | Q17: 1 | U17: .
A18: Hours | B18: 1.68 x 2.8 | Q18: 1 | U18: .
A19: Minutes | B19: 1.88 x 3 | Q19: 1 | U19: .
A20: Seconds | B20: 1.92 x 3.2 | G20: Local | Q20: 1 | U20: .
K21: Chicago | Q21: 1 | U21: .
A22: =RTD("cqg.rtd", ,"SystemInfo", "Linetime") -> 44671.37819 | Q22: 1 | U22: .
Q23: 1 | U23: .
A24: Actual Hours | B24: =HOUR(A22) -> 9 | Q24: 1 | U24: .
A25: Hours | B25: =IF(B24>=12,B24-12,B24)+MINUTE(A22)/60 -> 9.066666667 | Q25: 1 | U25: .
A26: Needle | B26: 0.02 | Q26: 1 | U26: .
A27: Rest | B27: =12-B25 -> 2.933333333 | Q27: 1 | U27: .
Q28: 1 | U28: .
Q29: 1 | U29: .
A30: Minutes | B30: =MINUTE(A22) -> 4 | Q30: 1 | U30: .
A31: Needle | B31: 0.02 | Q31: 1 | U31: .
A32: Rest | B32: =60-B30 -> 56 | Q32: 1 | U32: .
Q33: 1 | U33: .
Q34: 1 | U34: .
A35: Seconds | B35: =SECOND(A22) -> 36 | Q35: 1 | U35: .
A36: Needle | B36: 0.02 | Q36: 1 | U36: .
A37: Rest | B37: =60-B35 -> 24 | Q37: 1 | U37: .
Q38: 1 | U38: .
Q39: 1 | U39: .
A40: Dial | B40: 3 x 5 | Q40: 1 | U40: .
A41: Hours | B41: 1.68 x 2.8 | Q41: 1 | U41: .
A42: Minutes | B42: 1.88 x 3 | Q42: 1 | U42: .
A43: Seconds | B43: 1.92 x 3.2 | Q43: 1 | U43: .
Q44: 1 | U44: .
Q45: 1 | U45: .
Q46: 1 | U46: .
Q47: 1 | U47: .
Q48: 1 | U48: .
Q49: 1 | U49: .
Q50: 1 | U50: .
Q51: 1 | U51: .
Q52: 1 | U52: .
Q53: 1 | U53: .
Q54: 1 | U54: .
Q55: 1 | U55: .
Q56: 1 | U56: .
Q57: 1 | U57: .
Q58: 1 | U58: .
Q59: 1 | U59: .
Q60: 1 | U60: .
Q61: 1 | U61: .
